Workbook

Sheet 基础属性
A1: 综合存活 | D1: 血/攻-防 | E1: 成长率.攻 | F1: 成长率.防 | G1: 成长率.血 | H1: 等级 | I1: 攻击 | J1: 防御 | K1: 生命 | L1: 攻速 | M1: 伤害技能 | N1: 技能CD | O1: 加血技能 | P1: 技能CD | Q1: 攻击秒伤 | R1: 技能秒伤 | S1: 累计秒杀 | T1: 普攻存活 | U1: 技能存活 | V1: 目标存活
A2: =K2*O2/S2 -> 19.35483871 | D2: =K2*O2/(I2-J2) -> 33.33333333 | E2: 1 | F2: 1 | G2: 1 | H2: 1 | I2: 25 | J2: 10 | K2: 500 | L2: 1 | M2: 3 | N2: 6 | O2: 1 | P2: 1 | Q2: =((I2-J2)*L2) -> 15 | R2: =(I2*M2-J2)/N2 -> 10.83333333 | S2: =R2+Q2 -> 25.83333333 | T2: =K2*O2/Q2 -> 33.33333333 | U2: =K2*O2/R2 -> 46.15384615 | V2: 20
A3: =K3*O3/S3 -> 19.35483871 | D3: =K3*O3/(I3-J3) -> 33.33333333 | E3: 1.1 | F3: 1.1 | G3: 1.1 | H3: 2 | I3: =E3*I$2 -> 27.5 | J3: =F3*J$2 -> 11 | K3: =G3*K$2 -> 550 | L3: 1 | M3: 3 | N3: 6 | O3: 1 | P3: 1 | Q3: =((I3-J3)*L3) -> 16.5 | R3: =(I3*M3-J3)/N3 -> 11.91666667 | S3: =R3+Q3 -> 28.41666667 | T3: =K3*O3/Q3 -> 33.33333333 | U3: =K3*O3/R3 -> 46.15384615
A4: 19.35483871 | D4: 33.33333333 | E4: 1.2 | F4: 1.2 | G4: 1.2 | H4: 3 | I4: =E4*I$2 -> 30 | J4: =F4*J$2 -> 12 | K4: =G4*K$2 -> 600 | L4: 1 | M4: 3 | N4: 6 | O4: 1 | P4: 1 | Q4: 18 | R4: 13 | S4: 31 | T4: 33.33333333 | U4: 46.15384615
A5: 19.35483871 | D5: 33.33333333 | E5: 1.3 | F5: 1.3 | G5: 1.3 | H5: 4 | I5: =E5*I$2 -> 32.5 | J5: 13 | K5: 650 | L5: 1 | M5: 3 | N5: 6 | O5: 1 | P5: 1 | Q5: 19.5 | R5: 14.08333333 | S5: 33.58333333 | T5: 33.33333333 | U5: 46.15384615
A6: 19.35483871 | D6: 33.33333333 | E6: 1.4 | F6: 1.4 | G6: 1.4 | H6: 5 | I6: 35 | J6: 14 | K6: 700 | L6: 1 | M6: 3 | N6: 6 | O6: 1 | P6: 1 | Q6: 21 | R6: 15.16666667 | S6: 36.16666667 | T6: 33.33333333 | U6: 46.15384615
A7: 19.35483871 | D7: 33.33333333 | E7: 1.5 | F7: 1.5 | G7: 1.5 | H7: 6 | I7: 37.5 | J7: 15 | K7: 750 | L7: 1 | M7: 3 | N7: 6 | O7: 1 | P7: 1 | Q7: 22.5 | R7: 16.25 | S7: 38.75 | T7: 33.33333333 | U7: 46.15384615
A8: 19.35483871 | D8: 33.33333333 | E8: 1.6 | F8: 1.6 | G8: 1.6 | H8: 7 | I8: 40 | J8: 16 | K8: 800 | L8: 1 | M8: 3 | N8: 6 | O8: 1 | P8: 1 | Q8: 24 | R8: 17.33333333 | S8: 41.33333333 | T8: 33.33333333 | U8: 46.15384615
A9: 19.35483871 | D9: 33.33333333 | E9: 1.7 | F9: 1.7 | G9: 1.7 | H9: 8 | I9: 42.5 | J9: 17 | K9: 850 | L9: 1 | M9: 3 | N9: 6 | O9: 1 | P9: 1 | Q9: 25.5 | R9: 18.41666667 | S9: 43.91666667 | T9: 33.33333333 | U9: 46.15384615
A10: 19.35483871 | D10: 33.33333333 | E10: 1.8 | F10: 1.8 | G10: 1.8 | H10: 9 | I10: 45 | J10: 18 | K10: 900 | L10: 1 | M10: 3 | N10: 6 | O10: 1 | P10: 1 | Q10: 27 | R10: 19.5 | S10: 46.5 | T10: 33.33333333 | U10: 46.15384615 | Z10: 2.414
A11: 19.35483871 | B11: 2.6 | D11: 33.33333333 | E11: 1.9 | F11: 1.9 | G11: 1.9 | H11: 10 | I11: 47.5 | J11: 19 | K11: 950 | L11: 1 | M11: 3 | N11: 6 | O11: 1 | P11: 1 | Q11: 28.5 | R11: 20.58333333 | S11: 49.08333333 | T11: 33.33333333 | U11: 46.15384615
A12: 25.16129032 | B12: =A12/A2 -> 1.3 | D12: 43.33333333 | E12: 2 | F12: 2 | G12: 2 | H12: 11 | I12: 50 | J12: 20 | K12: 1000 | L12: 1 | M12: 3 | N12: 6 | O12: 1.3 | P12: 1 | Q12: 30 | R12: 21.66666667 | S12: 51.66666667 | T12: 43.33333333 | U12: 60
A13: 19.71119134 | B13: =B11/Z10 -> 1.077050539 | D13: 32.89156627 | E13: 2.5 | F13: 2.1 | G13: 2.1 | H13: 12 | I13: 62.5 | J13: 21 | K13: 1050 | L13: 1 | M13: 3 | N13: 6 | O13: 1.3 | P13: 1 | Q13: 41.5 | R13: 27.75 | S13: 69.25 | T13: 32.89156627 | U13: 49.18918919
A14: 19.90719258 | D14: 33.25581395 | E14: 2.6 | F14: 2.2 | G14: 2.2 | H14: 13 | I14: 65 | J14: 22 | K14: 1100 | L14: 1 | M14: 3 | N14: 6 | O14: 1.3 | P14: 1 | Q14: 43 | R14: 28.83333333 | S14: 71.83333333 | T14: 33.25581395 | U14: 49.59537572
A15: 20.08958567 | D15: 33.59550562 | E15: 2.7 | F15: 2.3 | G15: 2.3 | H15: 14 | I15: 67.5 | J15: 23 | K15: 1150 | L15: 1 | M15: 3 | N15: 6 | O15: 1.3 | P15: 1 | Q15: 44.5 | R15: 29.91666667 | S15: 74.41666667 | T15: 33.59550562 | U15: 49.97214485
A16: 20.25974026 | D16: 33.91304348 | E16: 2.8 | F16: 2.4 | G16: 2.4 | H16: 15 | I16: 70 | J16: 24 | K16: 1200 | L16: 1 | M16: 3 | N16: 6 | O16: 1.3 | P16: 1 | Q16: 46 | R16: 31 | S16: 77 | T16: 33.91304348 | U16: 50.32258065
A17: 20.41884817 | D17: 34.21052632 | E17: 2.9 | F17: 2.5 | G17: 2.5 | H17: 16 | I17: 72.5 | J17: 25 | K17: 1250 | L17: 1 | M17: 3 | N17: 6 | O17: 1.3 | P17: 1 | Q17: 47.5 | R17: 32.08333333 | S17: 79.58333333 | T17: 34.21052632 | U17: 50.64935065
A18: 20.56795132 | D18: 34.48979592 | E18: 3 | F18: 2.6 | G18: 2.6 | H18: 17 | I18: 75 | J18: 26 | K18: 1300 | L18: 1 | M18: 3 | N18: 6 | O18: 1.3 | P18: 1 | Q18: 49 | R18: 33.16666667 | S18: 82.16666667 | T18: 34.48979592 | U18: 50.95477387
A19: 20.7079646 | D19: 34.75247525 | E19: 3.1 | F19: 2.7 | G19: 2.7 | H19: 18 | I19: 77.5 | J19: 27 | K19: 1350 | L19: 1 | M19: 3 | N19: 6 | O19: 1.3 | P19: 1 | Q19: 50.5 | R19: 34.25 | S19: 84.75 | T19: 34.75247525 | U19: 51.24087591
A20: 20.83969466 | D20: 35 | E20: 3.2 | F20: 2.8 | G20: 2.8 | H20: 19 | I20: 80 | J20: 28 | K20: 1400 | L20: 1 | M20: 3 | N20: 6 | O20: 1.3 | P20: 1 | Q20: 52 | R20: 35.33333333 | S20: 87.33333333 | T20: 35 | U20: 51.50943396
A21: 20.96385542 | D21: 35.23364486 | E21: 3.3 | F21: 2.9 | G21: 2.9 | H21: 20 | I21: 82.5 | J21: 29 | K21: 1450 | L21: 1 | M21: 3 | N21: 6 | O21: 1.3 | P21: 1 | Q21: 53.5 | R21: 36.41666667 | S21: 89.91666667 | T21: 35.23364486 | U21: 51.76201373
A22: 16.13793103 | B22: =A11/A22 -> 1.199338296 | D22: 35.45454545 | E22: 3.4 | F22: 3 | G22: 3 | H22: 21 | I22: 85 | J22: 30 | K22: 1500 | L22: 1 | M22: 5 | N22: 6 | O22: 1.3 | P22: 1 | Q22: 55 | R22: 65.83333333 | S22: 120.8333333 | T22: 35.45454545 | U22: 29.62025316
A23: 21.1919369 | D23: 35.66371681 | E23: 3.5 | F23: 3.1 | G23: 3.1 | H23: 22 | I23: 87.5 | J23: 31 | K23: 1550 | L23: 1 | M23: 3 | N23: 6 | O23: 1.3 | P23: 1 | Q23: 56.5 | R23: 38.58333333 | S23: 95.08333333 | T23: 35.66371681 | U23: 52.22462203
A24: 21.29692833 | D24: 35.86206897 | E24: 3.6 | F24: 3.2 | G24: 3.2 | H24: 23 | I24: 90 | J24: 32 | K24: 1600 | L24: 1 | M24: 3 | N24: 6 | O24: 1.3 | P24: 1 | Q24: 58 | R24: 39.66666667 | S24: 97.66666667 | T24: 35.86206897 | U24: 52.43697479
A25: 21.39650873 | D25: 36.05042017 | E25: 3.7 | F25: 3.3 | G25: 3.3 | H25: 24 | I25: 92.5 | J25: 33 | K25: 1650 | L25: 1 | M25: 3 | N25: 6 | O25: 1.3 | P25: 1 | Q25: 59.5 | R25: 40.75 | S25: 100.25 | T25: 36.05042017 | U25: 52.63803681
A26: 21.4910859 | D26: 36.2295082 | E26: 3.8 | F26: 3.4 | G26: 3.4 | H26: 25 | I26: 95 | J26: 34 | K26: 1700 | L26: 1 | M26: 3 | N26: 6 | O26: 1.3 | P26: 1 | Q26: 61 | R26: 41.83333333 | S26: 102.8333333 | T26: 36.2295082 | U26: 52.82868526
A27: 21.58102767 | D27: 36.4 | E27: 3.9 | F27: 3.5 | G27: 3.5 | H27: 26 | I27: 97.5 | J27: 35 | K27: 1750 | L27: 1 | M27: 3 | N27: 6 | O27: 1.3 | P27: 1 | Q27: 62.5 | R27: 42.91666667 | S27: 105.4166667 | T27: 36.4 | U27: 53.00970874
A28: 21.66666667 | D28: 36.5625 | E28: 4 | F28: 3.6 | G28: 3.6 | H28: 27 | I28: 100 | J28: 36 | K28: 1800 | L28: 1 | M28: 3 | N28: 6 | O28: 1.3 | P28: 1 | Q28: 64 | R28: 44 | S28: 108 | T28: 36.5625 | U28: 53.18181818
A29: 21.74830445 | D29: 36.71755725 | E29: 4.1 | F29: 3.7 | G29: 3.7 | H29: 28 | I29: 102.5 | J29: 37 | K29: 1850 | L29: 1 | M29: 3 | N29: 6 | O29: 1.3 | P29: 1 | Q29: 65.5 | R29: 45.08333333 | S29: 110.5833333 | T29: 36.71755725 | U29: 53.34565619
A30: 21.82621502 | D30: 36.86567164 | E30: 4.2 | F30: 3.8 | G30: 3.8 | H30: 29 | I30: 105 | J30: 38 | K30: 1900 | L30: 1 | M30: 3 | N30: 6 | O30: 1.3 | P30: 1 | Q30: 67 | R30: 46.16666667 | S30: 113.1666667 | T30: 36.86567164 | U30: 53.50180505
A31: 21.90064795 | D31: 37.00729927 | E31: 4.3 | F31: 3.9 | G31: 3.9 | H31: 30 | I31: 107.5 | J31: 39 | K31: 1950 | L31: 1 | M31: 3 | N31: 6 | O31: 1.3 | P31: 1 | Q31: 68.5 | R31: 47.25 | S31: 115.75 | T31: 37.00729927 | U31: 53.65079365
A32: 21.97183099 | D32: 37.14285714 | E32: 4.4 | F32: 4 | G32: 4 | H32: 31 | I32: 110 | J32: 40 | K32: 2000 | L32: 1 | M32: 3 | N32: 6 | O32: 1.3 | P32: 1 | Q32: 70 | R32: 48.33333333 | S32: 118.3333333 | T32: 37.14285714 | U32: 53.79310345
A33: 22.03997243 | D33: 37.27272727 | E33: 4.5 | F33: 4.1 | G33: 4.1 | H33: 32 | I33: 112.5 | J33: 41 | K33: 2050 | L33: 1 | M33: 3 | N33: 6 | O33: 1.3 | P33: 1 | Q33: 71.5 | R33: 49.41666667 | S33: 120.9166667 | T33: 37.27272727 | U33: 53.92917369
A34: 22.10526316 | D34: 37.39726027 | E34: 4.6 | F34: 4.2 | G34: 4.2 | H34: 33 | I34: 115 | J34: 42 | K34: 2100 | L34: 1 | M34: 3 | N34: 6 | O34: 1.3 | P34: 1 | Q34: 73 | R34: 50.5 | S34: 123.5 | T34: 37.39726027 | U34: 54.05940594
A35: =K35*O35/S35 -> 22.16787839 | D35: =K35*O35/(I35-J35) -> 37.51677852 | E35: 4.7 | F35: 4.3 | G35: 4.3 | H35: 34 | I35: 117.5 | J35: 43 | K35: 2150 | L35: 1 | M35: 3 | N35: 6 | O35: 1.3 | P35: 1 | Q35: =((I35-J35)*L35) -> 74.5 | R35: =(I35*M35-J35)/N35 -> 51.58333333 | S35: =R35+Q35 -> 126.0833333 | T35: =K35*O35/Q35 -> 37.51677852 | U35: =K35*O35/R35 -> 54.18416801
A36: 22.22797927 | D36: 37.63157895 | E36: 4.8 | F36: 4.4 | G36: 4.4 | H36: 35 | I36: 120 | J36: =F36*J$2 -> 44 | K36: =G36*K$2 -> 2200 | L36: 1 | M36: 3 | N36: 6 | O36: 1.3 | P36: 1 | Q36: 76 | R36: 52.66666667 | S36: 128.6666667 | T36: 37.63157895 | U36: 54.30379747
A37: 22.28571429 | D37: 37.74193548 | E37: 4.9 | F37: 4.5 | G37: 4.5 | H37: 36 | I37: =E37*I$2 -> 122.5 | J37: 45 | K37: 2250 | L37: 1 | M37: 3 | N37: 6 | O37: 1.3 | P37: 1 | Q37: 77.5 | R37: 53.75 | S37: 131.25 | T37: 37.74193548 | U37: 54.41860465
A38: 22.34122042 | D38: 37.84810127 | E38: 5 | F38: 4.6 | G38: 4.6 | H38: 37 | I38: 125 | J38: 46 | K38: 2300 | L38: 1 | M38: 3 | N38: 6 | O38: 1.3 | P38: 1 | Q38: 79 | R38: 54.83333333 | S38: 133.8333333 | T38: 37.84810127 | U38: 54.52887538
A39: 22.39462431 | D39: 37.95031056 | E39: 5.1 | F39: 4.7 | G39: 4.7 | H39: 38 | I39: 127.5 | J39: 47 | K39: 2350 | L39: 1 | M39: 3 | N39: 6 | O39: 1.3 | P39: 1 | Q39: 80.5 | R39: 55.91666667 | S39: 136.4166667 | T39: 37.95031056 | U39: 54.63487332
A40: 22.44604317 | D40: 38.04878049 | E40: 5.2 | F40: 4.8 | G40: 4.8 | H40: 39 | I40: 130 | J40: 48 | K40: 2400 | L40: 1 | M40: 3 | N40: 6 | O40: 1.3 | P40: 1 | Q40: 82 | R40: 57 | S40: 139 | T40: 38.04878049 | U40: 54.73684211
A41: 22.49558564 | D41: 38.14371257 | E41: 5.3 | F41: 4.9 | G41: 4.9 | H41: 40 | I41: 132.5 | J41: 49 | K41: 2450 | L41: 1 | M41: 3 | N41: 6 | O41: 1.3 | P41: 1 | Q41: 83.5 | R41: 58.08333333 | S41: 141.5833333 | T41: 38.14371257 | U41: 54.83500717
A42: 22.5433526 | D42: 38.23529412 | E42: 5.4 | F42: 5 | G42: 5 | H42: 41 | I42: 135 | J42: 50 | K42: 2500 | L42: 1 | M42: 3 | N42: 6 | O42: 1.3 | P42: 1 | Q42: 85 | R42: 59.16666667 | S42: 144.1666667 | T42: 38.23529412 | U42: 54.92957746
A43: 22.58943782 | D43: 38.32369942 | E43: 5.5 | F43: 5.1 | G43: 5.1 | H43: 42 | I43: 137.5 | J43: 51 | K43: 2550 | L43: 1 | M43: 3 | N43: 6 | O43: 1.3 | P43: 1 | Q43: 86.5 | R43: 60.25 | S43: 146.75 | T43: 38.32369942 | U43: 55.02074689
A44: 22.63392857 | D44: 38.40909091 | E44: 5.6 | F44: 5.2 | G44: 5.2 | H44: 43 | I44: 140 | J44: 52 | K44: 2600 | L44: 1 | M44: 3 | N44: 6 | O44: 1.3 | P44: 1 | Q44: 88 | R44: 61.33333333 | S44: 149.3333333 | T44: 38.40909091 | U44: 55.10869565
A45: 22.6769062 | D45: 38.49162011 | E45: 5.7 | F45: 5.3 | G45: 5.3 | H45: 44 | I45: 142.5 | J45: 53 | K45: 2650 | L45: 1 | M45: 3 | N45: 6 | O45: 1.3 | P45: 1 | Q45: 89.5 | R45: 62.41666667 | S45: 151.9166667 | T45: 38.49162011 | U45: 55.19359146
A46: 22.7184466 | D46: 38.57142857 | E46: 5.8 | F46: 5.4 | G46: 5.4 | H46: 45 | I46: 145 | J46: 54 | K46: 2700 | L46: 1 | M46: 3 | N46: 6 | O46: 1.3 | P46: 1 | Q46: 91 | R46: 63.5 | S46: 154.5 | T46: 38.57142857 | U46: 55.27559055
A47: 22.75862069 | D47: 38.64864865 | E47: 5.9 | F47: 5.5 | G47: 5.5 | H47: 46 | I47: 147.5 | J47: 55 | K47: 2750 | L47: 1 | M47: 3 | N47: 6 | O47: 1.3 | P47: 1 | Q47: 92.5 | R47: 64.58333333 | S47: 157.0833333 | T47: 38.64864865 | U47: 55.35483871
A48: 22.79749478 | D48: 38.72340426 | E48: 6 | F48: 5.6 | G48: 5.6 | H48: 47 | I48: 150 | J48: 56 | K48: 2800 | L48: 1 | M48: 3 | N48: 6 | O48: 1.3 | P48: 1 | Q48: 94 | R48: 65.66666667 | S48: 159.6666667 | T48: 38.72340426 | U48: 55.43147208
A49: 22.83513097 | D49: 38.79581152 | E49: 6.1 | F49: 5.7 | G49: 5.7 | H49: 48 | I49: 152.5 | J49: 57 | K49: 2850 | L49: 1 | M49: 3 | N49: 6 | O49: 1.3 | P49: 1 | Q49: 95.5 | R49: 66.75 | S49: 162.25 | T49: 38.79581152 | U49: 55.50561798
A50: 22.87158746 | D50: 38.86597938 | E50: 6.2 | F50: 5.8 | G50: 5.8 | H50: 49 | I50: 155 | J50: 58 | K50: 2900 | L50: 1 | M50: 3 | N50: 6 | O50: 1.3 | P50: 1 | Q50: 97 | R50: 67.83333333 | S50: 164.8333333 | T50: 38.86597938 | U50: 55.57739558
A51: 22.90691887 | D51: 38.93401015 | E51: 6.3 | F51: 5.9 | G51: 5.9 | H51: 50 | I51: 157.5 | J51: 59 | K51: 2950 | L51: 1 | M51: 3 | N51: 6 | O51: 1.3 | P51: 1 | Q51: 98.5 | R51: 68.91666667 | S51: 167.4166667 | T51: 38.93401015 | U51: 55.64691657
A52: 22.94117647 | D52: 39 | E52: 6.4 | F52: 6 | G52: 6 | H52: 51 | I52: 160 | J52: 60 | K52: 3000 | L52: 1 | M52: 3 | N52: 6 | O52: 1.3 | P52: 1 | Q52: 100 | R52: 70 | S52: 170 | T52: 39 | U52: 55.71428571
A53: 22.9744085 | D53: 39.06403941 | E53: 6.5 | F53: 6.1 | G53: 6.1 | H53: 52 | I53: 162.5 | J53: 61 | K53: 3050 | L53: 1 | M53: 3 | N53: 6 | O53: 1.3 | P53: 1 | Q53: 101.5 | R53: 71.08333333 | S53: 172.5833333 | T53: 39.06403941 | U53: 55.77960141
A54: 23.00666032 | D54: 39.12621359 | E54: 6.6 | F54: 6.2 | G54: 6.2 | H54: 53 | I54: 165 | J54: 62 | K54: 3100 | L54: 1 | M54: 3 | N54: 6 | O54: 1.3 | P54: 1 | Q54: 103 | R54: 72.16666667 | S54: 175.1666667 | T54: 39.12621359 | U54: 55.84295612

Sheet zg
E1: 坦克 | I1: 法师/游侠 | L1: 牧师 | O1: BOSS | R1: 小怪 | U1: 精英
A2: 等级 | B2: 成长率 | C2: 血攻比 | E2: 生命 | F2: 攻击 | I2: 生命 | J2: 攻击 | L2: 生命 | M2: 攻击 | O2: 生命 | P2: 攻击 | R2: 生命 | S2: 攻击 | U2: 生命 | V2: 攻击 | AA2: HP | AB2: 攻击
A3: 1 | C3: =VLOOKUP(A3,Y$25:Z$31,2) -> 20 | E3: =ROUND(AB$8*F3*$C3,0) -> 500 | F3: =AA8 -> 15 | I3: =ROUND(AB$9*J3*$C3,0) -> 300 | J3: =AA9 -> 25 | L3: =ROUND(AB$10*M3*$C3,0) -> 400 | M3: =AA10 -> 20 | O3: =ROUND(AB$13*P3*$C3,0) -> 2000 | P3: =AA13 -> 35 | R3: =ROUND(AB$14*S3*$C3,0) -> 60 | S3: =AA14 -> 10 | U3: =ROUND(AB$15*V3*$C3,0) -> 1100 | V3: =AA15 -> 20
A4: 2 | B4: 1.1 | C4: 20 | E4: 567 | F4: =ROUND(F$3*$B4,0) -> 17 | G4: =E4/E$3 -> 1.134 | I4: 336 | J4: =ROUND(J$3*$B4,0) -> 28 | L4: 440 | M4: =ROUND(M$3*$B4,0) -> 22 | N4: =O4/O$3 -> 1.1145 | O4: 2229 | P4: =ROUND(P$3*$B4,0) -> 39 | Q4: =P4/P$3 -> 1.114285714 | R4: 66 | S4: =ROUND(S$3*$B4,0) -> 11 | U4: 1210 | V4: =ROUND(V$3*$B4,0) -> 22 | AA4: 200 | AB4: 10
A5: 3 | B5: 1.2 | C5: 20 | E5: 600 | F5: =ROUND(F$3*$B5,0) -> 18 | G5: =E5/E$3 -> 1.2 | I5: 360 | J5: =ROUND(J$3*$B5,0) -> 30 | L5: 480 | M5: =ROUND(M$3*$B5,0) -> 24 | N5: =O5/O$3 -> 1.2 | O5: 2400 | P5: =ROUND(P$3*$B5,0) -> 42 | Q5: =P5/P$3 -> 1.2 | R5: 72 | S5: =ROUND(S$3*$B5,0) -> 12 | U5: 1320 | V5: =ROUND(V$3*$B5,0) -> 24
A6: 4 | B6: 1.3 | C6: 20 | E6: 667 | F6: =ROUND(F$3*$B6,0) -> 20 | G6: =E6/E$3 -> 1.334 | I6: 396 | J6: =ROUND(J$3*$B6,0) -> 33 | L6: 520 | M6: =ROUND(M$3*$B6,0) -> 26 | N6: =O6/O$3 -> 1.3145 | O6: 2629 | P6: =ROUND(P$3*$B6,0) -> 46 | Q6: =P6/P$3 -> 1.314285714 | R6: 78 | S6: =ROUND(S$3*$B6,0) -> 13 | U6: 1430 | V6: =ROUND(V$3*$B6,0) -> 26 | Z6: 20 | AA6: 1
A7: 5 | B7: 1.4 | C7: 20 | E7: 700 | F7: =ROUND(F$3*$B7,0) -> 21 | G7: =E7/E$3 -> 1.4 | I7: 420 | J7: =ROUND(J$3*$B7,0) -> 35 | L7: 560 | M7: =ROUND(M$3*$B7,0) -> 28 | N7: =O7/O$3 -> 1.4 | O7: 2800 | P7: =ROUND(P$3*$B7,0) -> 49 | Q7: =P7/P$3 -> 1.4 | R7: 84 | S7: =ROUND(S$3*$B7,0) -> 14 | U7: 1540 | V7: =ROUND(V$3*$B7,0) -> 28 | Z7: HP | AA7: ATK
A8: 6 | B8: 1.5 | C8: 20 | E8: 767 | F8: =ROUND(F$3*$B8,0) -> 23 | G8: =E8/E$3 -> 1.534 | I8: 456 | J8: =ROUND(J$3*$B8,0) -> 38 | L8: 600 | M8: =ROUND(M$3*$B8,0) -> 30 | N8: =O8/O$3 -> 1.5145 | O8: 3029 | P8: =ROUND(P$3*$B8,0) -> 53 | Q8: =P8/P$3 -> 1.514285714 | R8: 90 | S8: =ROUND(S$3*$B8,0) -> 15 | U8: 1650 | V8: =ROUND(V$3*$B8,0) -> 30 | Y8: 坦克 | Z8: 25 | AA8: 15 | AB8: =Z8/AA8 -> 1.666666667
A9: 7 | B9: 1.6 | C9: 20 | E9: 800 | F9: =ROUND(F$3*$B9,0) -> 24 | G9: =E9/E$3 -> 1.6 | I9: 480 | J9: =ROUND(J$3*$B9,0) -> 40 | L9: 640 | M9: =ROUND(M$3*$B9,0) -> 32 | N9: =O9/O$3 -> 1.6 | O9: 3200 | P9: =ROUND(P$3*$B9,0) -> 56 | Q9: =P9/P$3 -> 1.6 | R9: 96 | S9: =ROUND(S$3*$B9,0) -> 16 | U9: 1760 | V9: =ROUND(V$3*$B9,0) -> 32 | Y9: 法师 | Z9: 15 | AA9: 25 | AB9: 0.6
A10: 8 | B10: 1.7 | C10: 20 | E10: 867 | F10: =ROUND(F$3*$B10,0) -> 26 | G10: =E10/E$3 -> 1.734 | I10: 516 | J10: =ROUND(J$3*$B10,0) -> 43 | L10: 680 | M10: =ROUND(M$3*$B10,0) -> 34 | N10: =O10/O$3 -> 1.7145 | O10: 3429 | P10: =ROUND(P$3*$B10,0) -> 60 | Q10: =P10/P$3 -> 1.714285714 | R10: 102 | S10: =ROUND(S$3*$B10,0) -> 17 | U10: 1870 | V10: =ROUND(V$3*$B10,0) -> 34 | Y10: 牧师 | Z10: 20 | AA10: 20 | AB10: 1
A11: 9 | B11: 1.8 | C11: 20 | E11: 900 | F11: =ROUND(F$3*$B11,0) -> 27 | G11: =E11/E$3 -> 1.8 | I11: 540 | J11: =ROUND(J$3*$B11,0) -> 45 | L11: 720 | M11: =ROUND(M$3*$B11,0) -> 36 | N11: =O11/O$3 -> 1.8 | O11: 3600 | P11: =ROUND(P$3*$B11,0) -> 63 | Q11: =P11/P$3 -> 1.8 | R11: 108 | S11: =ROUND(S$3*$B11,0) -> 18 | U11: 1980 | V11: =ROUND(V$3*$B11,0) -> 36
A12: 10 | B12: 1.9 | C12: 20 | E12: 967 | F12: =ROUND(F$3*$B12,0) -> 29 | G12: =E12/E$3 -> 1.934 | I12: 576 | J12: =ROUND(J$3*$B12,0) -> 48 | L12: 760 | M12: =ROUND(M$3*$B12,0) -> 38 | N12: =O12/O$3 -> 1.9145 | O12: 3829 | P12: =ROUND(P$3*$B12,0) -> 67 | Q12: =P12/P$3 -> 1.914285714 | R12: 114 | S12: =ROUND(S$3*$B12,0) -> 19 | U12: 2090 | V12: =ROUND(V$3*$B12,0) -> 38
A13: 11 | B13: 2 | C13: 20 | E13: 1000 | F13: =ROUND(F$3*$B13,0) -> 30 | G13: =E13/E$3 -> 2 | I13: 600 | J13: =ROUND(J$3*$B13,0) -> 50 | L13: 800 | M13: =ROUND(M$3*$B13,0) -> 40 | N13: =O13/O$3 -> 2 | O13: 4000 | P13: =ROUND(P$3*$B13,0) -> 70 | Q13: =P13/P$3 -> 2 | R13: 120 | S13: =ROUND(S$3*$B13,0) -> 20 | U13: 2200 | V13: =ROUND(V$3*$B13,0) -> 40 | Y13: BOSS | Z13: 100 | AA13: 35 | AB13: =Z13/AA13 -> 2.857142857
A14: 12 | B14: 2.1 | C14: 20 | E14: 1067 | F14: =ROUND(F$3*$B14,0) -> 32 | G14: =E14/E$3 -> 2.134 | I14: 636 | J14: =ROUND(J$3*$B14,0) -> 53 | L14: 840 | M14: =ROUND(M$3*$B14,0) -> 42 | N14: =O14/O$3 -> 2.1145 | O14: 4229 | P14: =ROUND(P$3*$B14,0) -> 74 | Q14: =P14/P$3 -> 2.114285714 | R14: 126 | S14: =ROUND(S$3*$B14,0) -> 21 | U14: 2310 | V14: =ROUND(V$3*$B14,0) -> 42 | Y14: 小怪×10 | Z14: 3 | AA14: 10 | AB14: 0.3
A15: 13 | B15: 2.2 | C15: 20 | E15: 1100 | F15: =ROUND(F$3*$B15,0) -> 33 | G15: =E15/E$3 -> 2.2 | I15: 660 | J15: =ROUND(J$3*$B15,0) -> 55 | L15: 880 | M15: =ROUND(M$3*$B15,0) -> 44 | N15: =O15/O$3 -> 2.2 | O15: 4400 | P15: =ROUND(P$3*$B15,0) -> 77 | Q15: =P15/P$3 -> 2.2 | R15: 132 | S15: =ROUND(S$3*$B15,0) -> 22 | U15: 2420 | V15: =ROUND(V$3*$B15,0) -> 44 | Y15: 精英×2 | Z15: 55 | AA15: 20 | AB15: 2.75
A16: 14 | B16: 2.3 | C16: 20 | E16: 1167 | F16: =ROUND(F$3*$B16,0) -> 35 | G16: =E16/E$3 -> 2.334 | I16: 696 | J16: =ROUND(J$3*$B16,0) -> 58 | L16: 920 | M16: =ROUND(M$3*$B16,0) -> 46 | N16: =O16/O$3 -> 2.3145 | O16: 4629 | P16: =ROUND(P$3*$B16,0) -> 81 | Q16: =P16/P$3 -> 2.314285714 | R16: 138 | S16: =ROUND(S$3*$B16,0) -> 23 | U16: 2530 | V16: =ROUND(V$3*$B16,0) -> 46
A17: 15 | B17: 2.4 | C17: 20 | E17: 1200 | F17: =ROUND(F$3*$B17,0) -> 36 | G17: =E17/E$3 -> 2.4 | I17: 720 | J17: =ROUND(J$3*$B17,0) -> 60 | L17: 960 | M17: =ROUND(M$3*$B17,0) -> 48 | N17: =O17/O$3 -> 2.4 | O17: 4800 | P17: =ROUND(P$3*$B17,0) -> 84 | Q17: =P17/P$3 -> 2.4 | R17: 144 | S17: =ROUND(S$3*$B17,0) -> 24 | U17: 2640 | V17: =ROUND(V$3*$B17,0) -> 48
A18: 16 | B18: 2.5 | C18: 20 | E18: 1267 | F18: =ROUND(F$3*$B18,0) -> 38 | G18: =E18/E$3 -> 2.534 | I18: 756 | J18: =ROUND(J$3*$B18,0) -> 63 | L18: 1000 | M18: =ROUND(M$3*$B18,0) -> 50 | N18: =O18/O$3 -> 2.5145 | O18: 5029 | P18: =ROUND(P$3*$B18,0) -> 88 | Q18: =P18/P$3 -> 2.514285714 | R18: 150 | S18: =ROUND(S$3*$B18,0) -> 25 | U18: 2750 | V18: =ROUND(V$3*$B18,0) -> 50
A19: 17 | B19: 2.6 | C19: 20 | E19: 1300 | F19: =ROUND(F$3*$B19,0) -> 39 | G19: =E19/E$3 -> 2.6 | I19: 780 | J19: =ROUND(J$3*$B19,0) -> 65 | L19: 1040 | M19: =ROUND(M$3*$B19,0) -> 52 | N19: =O19/O$3 -> 2.6 | O19: 5200 | P19: =ROUND(P$3*$B19,0) -> 91 | Q19: =P19/P$3 -> 2.6 | R19: 156 | S19: =ROUND(S$3*$B19,0) -> 26 | U19: 2860 | V19: =ROUND(V$3*$B19,0) -> 52
A20: 18 | B20: 2.7 | C20: 20 | E20: 1367 | F20: =ROUND(F$3*$B20,0) -> 41 | G20: =E20/E$3 -> 2.734 | I20: 816 | J20: =ROUND(J$3*$B20,0) -> 68 | L20: 1080 | M20: =ROUND(M$3*$B20,0) -> 54 | N20: =O20/O$3 -> 2.7145 | O20: 5429 | P20: =ROUND(P$3*$B20,0) -> 95 | Q20: =P20/P$3 -> 2.714285714 | R20: 162 | S20: =ROUND(S$3*$B20,0) -> 27 | U20: 2970 | V20: =ROUND(V$3*$B20,0) -> 54
A21: 19 | B21: 2.8 | C21: 20 | E21: 1400 | F21: =ROUND(F$3*$B21,0) -> 42 | G21: =E21/E$3 -> 2.8 | I21: 840 | J21: =ROUND(J$3*$B21,0) -> 70 | L21: 1120 | M21: =ROUND(M$3*$B21,0) -> 56 | N21: =O21/O$3 -> 2.8 | O21: 5600 | P21: =ROUND(P$3*$B21,0) -> 98 | Q21: =P21/P$3 -> 2.8 | R21: 168 | S21: =ROUND(S$3*$B21,0) -> 28 | U21: 3080 | V21: =ROUND(V$3*$B21,0) -> 56
A22: 20 | B22: 2.9 | C22: 20 | E22: 1467 | F22: =ROUND(F$3*$B22,0) -> 44 | G22: =E22/E$3 -> 2.934 | I22: 876 | J22: =ROUND(J$3*$B22,0) -> 73 | L22: 1160 | M22: =ROUND(M$3*$B22,0) -> 58 | N22: =O22/O$3 -> 2.9145 | O22: 5829 | P22: =ROUND(P$3*$B22,0) -> 102 | Q22: =P22/P$3 -> 2.914285714 | R22: 174 | S22: =ROUND(S$3*$B22,0) -> 29 | U22: 3190 | V22: =ROUND(V$3*$B22,0) -> 58
A23: 21 | B23: 3 | C23: 20 | E23: 1500 | F23: =ROUND(F$3*$B23,0) -> 45 | G23: =E23/E$3 -> 3 | I23: 900 | J23: =ROUND(J$3*$B23,0) -> 75 | L23: 1200 | M23: =ROUND(M$3*$B23,0) -> 60 | N23: =O23/O$3 -> 3 | O23: 6000 | P23: =ROUND(P$3*$B23,0) -> 105 | Q23: =P23/P$3 -> 3 | R23: 180 | S23: =ROUND(S$3*$B23,0) -> 30 | U23: 3300 | V23: =ROUND(V$3*$B23,0) -> 60
A24: 22 | B24: 3.1 | C24: 20 | E24: 1567 | F24: =ROUND(F$3*$B24,0) -> 47 | G24: =E24/E$3 -> 3.134 | I24: 936 | J24: =ROUND(J$3*$B24,0) -> 78 | L24: 1240 | M24: =ROUND(M$3*$B24,0) -> 62 | N24: =O24/O$3 -> 3.1145 | O24: 6229 | P24: =ROUND(P$3*$B24,0) -> 109 | Q24: =P24/P$3 -> 3.114285714 | R24: 186 | S24: =ROUND(S$3*$B24,0) -> 31 | U24: 3410 | V24: =ROUND(V$3*$B24,0) -> 62 | X24: 技能等级 | Y24: 等级 | Z24: 血攻比 | AC24: 普攻 | AD24: 技能（10CD） | AF24: 技能CD | AG24: 6
A25: 23 | B25: 3.2 | C25: 20 | E25: 1600 | F25: =ROUND(F$3*$B25,0) -> 48 | G25: =E25/E$3 -> 3.2 | I25: 960 | J25: =ROUND(J$3*$B25,0) -> 80 | L25: 1280 | M25: =ROUND(M$3*$B25,0) -> 64 | N25: =O25/O$3 -> 3.2 | O25: 6400 | P25: =ROUND(P$3*$B25,0) -> 112 | Q25: =P25/P$3 -> 3.2 | R25: 192 | S25: =ROUND(S$3*$B25,0) -> 32 | U25: 3520 | V25: =ROUND(V$3*$B25,0) -> 64 | X25: 1 | Y25: 1 | Z25: =AC25+AD25 -> 20 | AA25: 1 | AC25: 10 | AD25: 10 | AF25: 1 | AG25: =AF25*AG$24 -> 6
A26: 24 | B26: 3.3 | C26: 20 | E26: 1667 | F26: =ROUND(F$3*$B26,0) -> 50 | G26: =E26/E$3 -> 3.334 | I26: 996 | J26: =ROUND(J$3*$B26,0) -> 83 | L26: 1320 | M26: =ROUND(M$3*$B26,0) -> 66 | N26: =O26/O$3 -> 3.3145 | O26: 6629 | P26: =ROUND(P$3*$B26,0) -> 116 | Q26: =P26/P$3 -> 3.314285714 | R26: 198 | S26: =ROUND(S$3*$B26,0) -> 33 | U26: 3630 | V26: =ROUND(V$3*$B26,0) -> 66 | X26: 2 | Y26: 50 | Z26: 21 | AA26: 1 | AC26: 10 | AD26: 11 | AF26: 1.1 | AG26: 6.6
A27: 25 | B27: 3.4 | C27: 20 | E27: 1700 | F27: =ROUND(F$3*$B27,0) -> 51 | G27: =E27/E$3 -> 3.4 | I27: 1020 | J27: =ROUND(J$3*$B27,0) -> 85 | L27: 1360 | M27: =ROUND(M$3*$B27,0) -> 68 | N27: =O27/O$3 -> 3.4 | O27: 6800 | P27: =ROUND(P$3*$B27,0) -> 119 | Q27: =P27/P$3 -> 3.4 | R27: 204 | S27: =ROUND(S$3*$B27,0) -> 34 | U27: 3740 | V27: =ROUND(V$3*$B27,0) -> 68 | X27: 3 | Y27: 100 | Z27: 22 | AA27: 1 | AC27: 10 | AD27: 12 | AF27: 1.2 | AG27: 7.2
A28: 26 | B28: 3.5 | C28: 20 | E28: 1767 | F28: =ROUND(F$3*$B28,0) -> 53 | G28: =E28/E$3 -> 3.534 | I28: 1056 | J28: =ROUND(J$3*$B28,0) -> 88 | L28: 1400 | M28: =ROUND(M$3*$B28,0) -> 70 | N28: =O28/O$3 -> 3.5145 | O28: 7029 | P28: =ROUND(P$3*$B28,0) -> 123 | Q28: =P28/P$3 -> 3.514285714 | R28: 210 | S28: =ROUND(S$3*$B28,0) -> 35 | U28: 3850 | V28: =ROUND(V$3*$B28,0) -> 70 | X28: 4 | Y28: 150 | Z28: 23 | AA28: 1 | AC28: 10 | AD28: 13 | AF28: 1.3 | AG28: 7.8
A29: 27 | B29: 3.6 | C29: 20 | E29: 1800 | F29: =ROUND(F$3*$B29,0) -> 54 | G29: =E29/E$3 -> 3.6 | I29: 1080 | J29: =ROUND(J$3*$B29,0) -> 90 | L29: 1440 | M29: =ROUND(M$3*$B29,0) -> 72 | N29: =O29/O$3 -> 3.6 | O29: 7200 | P29: =ROUND(P$3*$B29,0) -> 126 | Q29: =P29/P$3 -> 3.6 | R29: 216 | S29: =ROUND(S$3*$B29,0) -> 36 | U29: 3960 | V29: =ROUND(V$3*$B29,0) -> 72 | X29: 5 | Y29: 200 | Z29: 24 | AA29: 1 | AC29: 10 | AD29: 14 | AF29: 1.4 | AG29: 8.4
A30: 28 | B30: 3.7 | C30: 20 | E30: 1867 | F30: =ROUND(F$3*$B30,0) -> 56 | G30: =E30/E$3 -> 3.734 | I30: 1116 | J30: =ROUND(J$3*$B30,0) -> 93 | L30: 1480 | M30: =ROUND(M$3*$B30,0) -> 74 | N30: =O30/O$3 -> 3.7145 | O30: 7429 | P30: =ROUND(P$3*$B30,0) -> 130 | Q30: =P30/P$3 -> 3.714285714 | R30: 222 | S30: =ROUND(S$3*$B30,0) -> 37 | U30: 4070 | V30: =ROUND(V$3*$B30,0) -> 74 | X30: 6 | Y30: 250 | Z30: 25 | AA30: 1 | AC30: 10 | AD30: 15 | AF30: 1.5 | AG30: 9
A31: 29 | B31: 3.8 | C31: 20 | E31: 1900 | F31: =ROUND(F$3*$B31,0) -> 57 | G31: =E31/E$3 -> 3.8 | I31: 1140 | J31: =ROUND(J$3*$B31,0) -> 95 | L31: 1520 | M31: =ROUND(M$3*$B31,0) -> 76 | N31: =O31/O$3 -> 3.8 | O31: 7600 | P31: =ROUND(P$3*$B31,0) -> 133 | Q31: =P31/P$3 -> 3.8 | R31: 228 | S31: =ROUND(S$3*$B31,0) -> 38 | U31: 4180 | V31: =ROUND(V$3*$B31,0) -> 76 | X31: 7 | Y31: 300 | Z31: 26 | AA31: 1 | AC31: 10 | AD31: 16 | AF31: 1.6 | AG31: 9.6
A32: 30 | B32: 3.9 | C32: 20 | E32: 1967 | F32: =ROUND(F$3*$B32,0) -> 59 | G32: =E32/E$3 -> 3.934 | I32: 1176 | J32: =ROUND(J$3*$B32,0) -> 98 | L32: 1560 | M32: =ROUND(M$3*$B32,0) -> 78 | N32: =O32/O$3 -> 3.9145 | O32: 7829 | P32: =ROUND(P$3*$B32,0) -> 137 | Q32: =P32/P$3 -> 3.914285714 | R32: 234 | S32: =ROUND(S$3*$B32,0) -> 39 | U32: 4290 | V32: =ROUND(V$3*$B32,0) -> 78
A33: 31 | B33: 4 | C33: 20 | E33: 2000 | F33: =ROUND(F$3*$B33,0) -> 60 | G33: =E33/E$3 -> 4 | I33: 1200 | J33: =ROUND(J$3*$B33,0) -> 100 | L33: 1600 | M33: =ROUND(M$3*$B33,0) -> 80 | N33: =O33/O$3 -> 4 | O33: 8000 | P33: =ROUND(P$3*$B33,0) -> 140 | Q33: =P33/P$3 -> 4 | R33: 240 | S33: =ROUND(S$3*$B33,0) -> 40 | U33: 4400 | V33: =ROUND(V$3*$B33,0) -> 80
A34: 32 | B34: 4.1 | C34: 20 | E34: 2067 | F34: =ROUND(F$3*$B34,0) -> 62 | G34: =E34/E$3 -> 4.134 | I34: 1236 | J34: =ROUND(J$3*$B34,0) -> 103 | L34: 1640 | M34: =ROUND(M$3*$B34,0) -> 82 | N34: =O34/O$3 -> 4.1145 | O34: 8229 | P34: =ROUND(P$3*$B34,0) -> 144 | Q34: =P34/P$3 -> 4.114285714 | R34: 246 | S34: =ROUND(S$3*$B34,0) -> 41 | U34: 4510 | V34: =ROUND(V$3*$B34,0) -> 82
A35: 33 | B35: 4.2 | C35: 20 | E35: 2100 | F35: =ROUND(F$3*$B35,0) -> 63 | G35: =E35/E$3 -> 4.2 | I35: 1260 | J35: =ROUND(J$3*$B35,0) -> 105 | L35: 1680 | M35: =ROUND(M$3*$B35,0) -> 84 | N35: =O35/O$3 -> 4.2 | O35: 8400 | P35: =ROUND(P$3*$B35,0) -> 147 | Q35: =P35/P$3 -> 4.2 | R35: 252 | S35: =ROUND(S$3*$B35,0) -> 42 | U35: 4620 | V35: =ROUND(V$3*$B35,0) -> 84
A36: 34 | B36: 4.3 | C36: 20 | E36: 2167 | F36: =ROUND(F$3*$B36,0) -> 65 | G36: =E36/E$3 -> 4.334 | I36: 1296 | J36: =ROUND(J$3*$B36,0) -> 108 | L36: 1720 | M36: =ROUND(M$3*$B36,0) -> 86 | N36: =O36/O$3 -> 4.3145 | O36: 8629 | P36: =ROUND(P$3*$B36,0) -> 151 | Q36: =P36/P$3 -> 4.314285714 | R36: 258 | S36: =ROUND(S$3*$B36,0) -> 43 | U36: 4730 | V36: =ROUND(V$3*$B36,0) -> 86
A37: 35 | B37: 4.4 | C37: 20 | E37: 2200 | F37: =ROUND(F$3*$B37,0) -> 66 | G37: =E37/E$3 -> 4.4 | I37: 1320 | J37: =ROUND(J$3*$B37,0) -> 110 | L37: 1760 | M37: =ROUND(M$3*$B37,0) -> 88 | N37: =O37/O$3 -> 4.4 | O37: 8800 | P37: =ROUND(P$3*$B37,0) -> 154 | Q37: =P37/P$3 -> 4.4 | R37: 264 | S37: =ROUND(S$3*$B37,0) -> 44 | U37: 4840 | V37: =ROUND(V$3*$B37,0) -> 88
A38: 36 | B38: 4.5 | C38: 20 | E38: 2267 | F38: =ROUND(F$3*$B38,0) -> 68 | G38: =E38/E$3 -> 4.534 | I38: 1356 | J38: =ROUND(J$3*$B38,0) -> 113 | L38: 1800 | M38: =ROUND(M$3*$B38,0) -> 90 | N38: =O38/O$3 -> 4.5145 | O38: 9029 | P38: =ROUND(P$3*$B38,0) -> 158 | Q38: =P38/P$3 -> 4.514285714 | R38: 270 | S38: =ROUND(S$3*$B38,0) -> 45 | U38: 4950 | V38: =ROUND(V$3*$B38,0) -> 90
A39: 37 | B39: 4.6 | C39: 20 | E39: 2300 | F39: =ROUND(F$3*$B39,0) -> 69 | G39: =E39/E$3 -> 4.6 | I39: 1380 | J39: =ROUND(J$3*$B39,0) -> 115 | L39: 1840 | M39: =ROUND(M$3*$B39,0) -> 92 | N39: =O39/O$3 -> 4.6 | O39: 9200 | P39: =ROUND(P$3*$B39,0) -> 161 | Q39: =P39/P$3 -> 4.6 | R39: 276 | S39: =ROUND(S$3*$B39,0) -> 46 | U39: 5060 | V39: =ROUND(V$3*$B39,0) -> 92
A40: 38 | B40: 4.7 | C40: 20 | E40: 2367 | F40: =ROUND(F$3*$B40,0) -> 71 | G40: =E40/E$3 -> 4.734 | I40: 1416 | J40: =ROUND(J$3*$B40,0) -> 118 | L40: 1880 | M40: =ROUND(M$3*$B40,0) -> 94 | N40: =O40/O$3 -> 4.7145 | O40: 9429 | P40: =ROUND(P$3*$B40,0) -> 165 | Q40: =P40/P$3 -> 4.714285714 | R40: 282 | S40: =ROUND(S$3*$B40,0) -> 47 | U40: 5170 | V40: =ROUND(V$3*$B40,0) -> 94
A41: 39 | B41: 4.8 | C41: 20 | E41: 2400 | F41: =ROUND(F$3*$B41,0) -> 72 | G41: =E41/E$3 -> 4.8 | I41: 1440 | J41: =ROUND(J$3*$B41,0) -> 120 | L41: 1920 | M41: =ROUND(M$3*$B41,0) -> 96 | N41: =O41/O$3 -> 4.8 | O41: 9600 | P41: =ROUND(P$3*$B41,0) -> 168 | Q41: =P41/P$3 -> 4.8 | R41: 288 | S41: =ROUND(S$3*$B41,0) -> 48 | U41: 5280 | V41: =ROUND(V$3*$B41,0) -> 96
A42: 40 | B42: 4.9 | C42: 20 | E42: 2433 | F42: =ROUND(F$3*$B42,0) -> 73 | G42: =E42/E$3 -> 4.866 | I42: 1476 | J42: =ROUND(J$3*$B42,0) -> 123 | L42: 1960 | M42: =ROUND(M$3*$B42,0) -> 98 | N42: =O42/O$3 -> 4.9145 | O42: 9829 | P42: =ROUND(P$3*$B42,0) -> 172 | Q42: =P42/P$3 -> 4.914285714 | R42: 294 | S42: =ROUND(S$3*$B42,0) -> 49 | U42: 5390 | V42: =ROUND(V$3*$B42,0) -> 98
A43: 41 | B43: 5 | C43: 20 | E43: 2500 | F43: =ROUND(F$3*$B43,0) -> 75 | G43: =E43/E$3 -> 5 | I43: 1500 | J43: =ROUND(J$3*$B43,0) -> 125 | L43: 2000 | M43: =ROUND(M$3*$B43,0) -> 100 | N43: =O43/O$3 -> 5 | O43: 10000 | P43: =ROUND(P$3*$B43,0) -> 175 | Q43: =P43/P$3 -> 5 | R43: 300 | S43: =ROUND(S$3*$B43,0) -> 50 | U43: 5500 | V43: =ROUND(V$3*$B43,0) -> 100
A44: 42 | B44: 5.1 | C44: 20 | E44: 2533 | F44: =ROUND(F$3*$B44,0) -> 76 | G44: =E44/E$3 -> 5.066 | I44: 1536 | J44: =ROUND(J$3*$B44,0) -> 128 | L44: 2040 | M44: =ROUND(M$3*$B44,0) -> 102 | N44: =O44/O$3 -> 5.1145 | O44: 10229 | P44: =ROUND(P$3*$B44,0) -> 179 | Q44: =P44/P$3 -> 5.114285714 | R44: 306 | S44: =ROUND(S$3*$B44,0) -> 51 | U44: 5610 | V44: =ROUND(V$3*$B44,0) -> 102
A45: 43 | B45: 5.2 | C45: 20 | E45: 2600 | F45: =ROUND(F$3*$B45,0) -> 78 | G45: =E45/E$3 -> 5.2 | I45: 1560 | J45: =ROUND(J$3*$B45,0) -> 130 | L45: 2080 | M45: =ROUND(M$3*$B45,0) -> 104 | N45: =O45/O$3 -> 5.2 | O45: 10400 | P45: =ROUND(P$3*$B45,0) -> 182 | Q45: =P45/P$3 -> 5.2 | R45: 312 | S45: =ROUND(S$3*$B45,0) -> 52 | U45: 5720 | V45: =ROUND(V$3*$B45,0) -> 104
A46: 44 | B46: 5.3 | C46: 20 | E46: 2633 | F46: =ROUND(F$3*$B46,0) -> 79 | G46: =E46/E$3 -> 5.266 | I46: 1596 | J46: =ROUND(J$3*$B46,0) -> 133 | L46: 2120 | M46: =ROUND(M$3*$B46,0) -> 106 | N46: =O46/O$3 -> 5.3145 | O46: 10629 | P46: =ROUND(P$3*$B46,0) -> 186 | Q46: =P46/P$3 -> 5.314285714 | R46: 318 | S46: =ROUND(S$3*$B46,0) -> 53 | U46: 5830 | V46: =ROUND(V$3*$B46,0) -> 106
A47: 45 | B47: 5.4 | C47: 20 | E47: 2700 | F47: =ROUND(F$3*$B47,0) -> 81 | G47: =E47/E$3 -> 5.4 | I47: 1620 | J47: =ROUND(J$3*$B47,0) -> 135 | L47: 2160 | M47: =ROUND(M$3*$B47,0) -> 108 | N47: =O47/O$3 -> 5.4 | O47: 10800 | P47: =ROUND(P$3*$B47,0) -> 189 | Q47: =P47/P$3 -> 5.4 | R47: 324 | S47: =ROUND(S$3*$B47,0) -> 54 | U47: 5940 | V47: =ROUND(V$3*$B47,0) -> 108
A48: 46 | B48: 5.5 | C48: 20 | E48: 2733 | F48: =ROUND(F$3*$B48,0) -> 82 | G48: =E48/E$3 -> 5.466 | I48: 1656 | J48: =ROUND(J$3*$B48,0) -> 138 | L48: 2200 | M48: =ROUND(M$3*$B48,0) -> 110 | N48: =O48/O$3 -> 5.5145 | O48: 11029 | P48: =ROUND(P$3*$B48,0) -> 193 | Q48: =P48/P$3 -> 5.514285714 | R48: 330 | S48: =ROUND(S$3*$B48,0) -> 55 | U48: 6050 | V48: =ROUND(V$3*$B48,0) -> 110
A49: 47 | B49: 5.6 | C49: 20 | E49: 2800 | F49: =ROUND(F$3*$B49,0) -> 84 | G49: =E49/E$3 -> 5.6 | I49: 1680 | J49: =ROUND(J$3*$B49,0) -> 140 | L49: 2240 | M49: =ROUND(M$3*$B49,0) -> 112 | N49: =O49/O$3 -> 5.6 | O49: 11200 | P49: =ROUND(P$3*$B49,0) -> 196 | Q49: =P49/P$3 -> 5.6 | R49: 336 | S49: =ROUND(S$3*$B49,0) -> 56 | U49: 6160 | V49: =ROUND(V$3*$B49,0) -> 112
A50: 48 | B50: 5.7 | C50: 20 | E50: 2833 | F50: =ROUND(F$3*$B50,0) -> 85 | G50: =E50/E$3 -> 5.666 | I50: 1716 | J50: =ROUND(J$3*$B50,0) -> 143 | L50: 2280 | M50: =ROUND(M$3*$B50,0) -> 114 | N50: =O50/O$3 -> 5.7145 | O50: 11429 | P50: =ROUND(P$3*$B50,0) -> 200 | Q50: =P50/P$3 -> 5.714285714 | R50: 342 | S50: =ROUND(S$3*$B50,0) -> 57 | U50: 6270 | V50: =ROUND(V$3*$B50,0) -> 114
A51: 49 | B51: 5.8 | C51: 20 | E51: 2900 | F51: =ROUND(F$3*$B51,0) -> 87 | G51: =E51/E$3 -> 5.8 | I51: 1740 | J51: =ROUND(J$3*$B51,0) -> 145 | L51: 2320 | M51: =ROUND(M$3*$B51,0) -> 116 | N51: =O51/O$3 -> 5.8 | O51: 11600 | P51: =ROUND(P$3*$B51,0) -> 203 | Q51: =P51/P$3 -> 5.8 | R51: 348 | S51: =ROUND(S$3*$B51,0) -> 58 | U51: 6380 | V51: =ROUND(V$3*$B51,0) -> 116
A52: 50 | B52: 5.9 | C52: 21 | E52: 3080 | F52: =ROUND(F$3*$B52,0) -> 88 | G52: =E52/E$3 -> 6.16 | I52: 1865 | J52: =ROUND(J$3*$B52,0) -> 148 | L52: 2478 | M52: =ROUND(M$3*$B52,0) -> 118 | N52: =O52/O$3 -> 6.21 | O52: 12420 | P52: =ROUND(P$3*$B52,0) -> 207 | Q52: =P52/P$3 -> 5.914285714 | R52: 372 | S52: =ROUND(S$3*$B52,0) -> 59 | U52: 6815 | V52: =ROUND(V$3*$B52,0) -> 118
A53: 51 | B53: 6 | C53: 21 | E53: 3150 | F53: =ROUND(F$3*$B53,0) -> 90 | G53: =E53/E$3 -> 6.3 | I53: 1890 | J53: =ROUND(J$3*$B53,0) -> 150 | L53: 2520 | M53: =ROUND(M$3*$B53,0) -> 120 | N53: =O53/O$3 -> 6.3 | O53: 12600 | P53: =ROUND(P$3*$B53,0) -> 210 | Q53: =P53/P$3 -> 6 | R53: 378 | S53: =ROUND(S$3*$B53,0) -> 60 | U53: 6930 | V53: =ROUND(V$3*$B53,0) -> 120
A54: 52 | B54: 6.1 | C54: 21 | E54: 3185 | F54: =ROUND(F$3*$B54,0) -> 91 | G54: =E54/E$3 -> 6.37 | I54: 1928 | J54: =ROUND(J$3*$B54,0) -> 153 | L54: 2562 | M54: =ROUND(M$3*$B54,0) -> 122 | N54: =O54/O$3 -> 6.42 | O54: 12840 | P54: =ROUND(P$3*$B54,0) -> 214 | Q54: =P54/P$3 -> 6.114285714 | R54: 384 | S54: =ROUND(S$3*$B54,0) -> 61 | U54: 7046 | V54: =ROUND(V$3*$B54,0) -> 122
A55: 53 | B55: 6.2 | C55: 21 | E55: 3255 | F55: =ROUND(F$3*$B55,0) -> 93 | G55: =E55/E$3 -> 6.51 | I55: 1953 | J55: =ROUND(J$3*$B55,0) -> 155 | L55: 2604 | M55: =ROUND(M$3*$B55,0) -> 124 | N55: =O55/O$3 -> 6.51 | O55: 13020 | P55: =ROUND(P$3*$B55,0) -> 217 | Q55: =P55/P$3 -> 6.2 | R55: 391 | S55: =ROUND(S$3*$B55,0) -> 62 | U55: 7161 | V55: =ROUND(V$3*$B55,0) -> 124
A56: 54 | B56: 6.3 | C56: 21 | E56: 3290 | F56: =ROUND(F$3*$B56,0) -> 94 | G56: =E56/E$3 -> 6.58 | I56: 1991 | J56: =ROUND(J$3*$B56,0) -> 158 | L56: 2646 | M56: =ROUND(M$3*$B56,0) -> 126 | N56: =O56/O$3 -> 6.63 | O56: 13260 | P56: =ROUND(P$3*$B56,0) -> 221 | Q56: =P56/P$3 -> 6.314285714 | R56: 397 | S56: =ROUND(S$3*$B56,0) -> 63 | U56: 7277 | V56: =ROUND(V$3*$B56,0) -> 126
A57: 55 | B57: 6.4 | C57: 21 | E57: 3360 | F57: =ROUND(F$3*$B57,0) -> 96 | G57: =E57/E$3 -> 6.72 | I57: 2016 | J57: =ROUND(J$3*$B57,0) -> 160 | L57: 2688 | M57: =ROUND(M$3*$B57,0) -> 128 | N57: =O57/O$3 -> 6.72 | O57: 13440 | P57: =ROUND(P$3*$B57,0) -> 224 | Q57: =P57/P$3 -> 6.4 | R57: 403 | S57: =ROUND(S$3*$B57,0) -> 64 | U57: 7392 | V57: =ROUND(V$3*$B57,0) -> 128
A58: 56 | B58: 6.5 | C58: 21 | E58: 3395 | F58: =ROUND(F$3*$B58,0) -> 97 | G58: =E58/E$3 -> 6.79 | I58: 2054 | J58: =ROUND(J$3*$B58,0) -> 163 | L58: 2730 | M58: =ROUND(M$3*$B58,0) -> 130 | N58: =O58/O$3 -> 6.84 | O58: 13680 | P58: =ROUND(P$3*$B58,0) -> 228 | Q58: =P58/P$3 -> 6.514285714 | R58: 410 | S58: =ROUND(S$3*$B58,0) -> 65 | U58: 7508 | V58: =ROUND(V$3*$B58,0) -> 130
A59: 57 | B59: 6.6 | C59: 21 | E59: 3465 | F59: =ROUND(F$3*$B59,0) -> 99 | G59: =E59/E$3 -> 6.93 | I59: 2079 | J59: =ROUND(J$3*$B59,0) -> 165 | L59: 2772 | M59: =ROUND(M$3*$B59,0) -> 132 | N59: =O59/O$3 -> 6.93 | O59: 13860 | P59: =ROUND(P$3*$B59,0) -> 231 | Q59: =P59/P$3 -> 6.6 | R59: 416 | S59: =ROUND(S$3*$B59,0) -> 66 | U59: 7623 | V59: =ROUND(V$3*$B59,0) -> 132
A60: 58 | B60: 6.7 | C60: 21 | E60: 3535 | F60: =ROUND(F$3*$B60,0) -> 101 | G60: =E60/E$3 -> 7.07 | I60: 2117 | J60: =ROUND(J$3*$B60,0) -> 168 | L60: 2814 | M60: =ROUND(M$3*$B60,0) -> 134 | N60: =O60/O$3 -> 7.05 | O60: 14100 | P60: =ROUND(P$3*$B60,0) -> 235 | Q60: =P60/P$3 -> 6.714285714 | R60: 422 | S60: =ROUND(S$3*$B60,0) -> 67 | U60: 7739 | V60: =ROUND(V$3*$B60,0) -> 134
A61: 59 | B61: 6.8 | C61: 21 | E61: 3570 | F61: =ROUND(F$3*$B61,0) -> 102 | G61: =E61/E$3 -> 7.14 | I61: 2142 | J61: =ROUND(J$3*$B61,0) -> 170 | L61: 2856 | M61: =ROUND(M$3*$B61,0) -> 136 | N61: =O61/O$3 -> 7.14 | O61: 14280 | P61: =ROUND(P$3*$B61,0) -> 238 | Q61: =P61/P$3 -> 6.8 | R61: 428 | S61: =ROUND(S$3*$B61,0) -> 68 | U61: 7854 | V61: =ROUND(V$3*$B61,0) -> 136
A62: 60 | B62: 6.9 | C62: 21 | E62: 3640 | F62: =ROUND(F$3*$B62,0) -> 104 | G62: =E62/E$3 -> 7.28 | I62: 2180 | J62: =ROUND(J$3*$B62,0) -> 173 | L62: 2898 | M62: =ROUND(M$3*$B62,0) -> 138 | N62: =O62/O$3 -> 7.26 | O62: 14520 | P62: =ROUND(P$3*$B62,0) -> 242 | Q62: =P62/P$3 -> 6.914285714 | R62: 435 | S62: =ROUND(S$3*$B62,0) -> 69 | U62: 7970 | V62: =ROUND(V$3*$B62,0) -> 138
A63: 61 | B63: 7 | C63: 21 | E63: 3675 | F63: =ROUND(F$3*$B63,0) -> 105 | G63: =E63/E$3 -> 7.35 | I63: 2205 | J63: =ROUND(J$3*$B63,0) -> 175 | L63: 2940 | M63: =ROUND(M$3*$B63,0) -> 140 | N63: =O63/O$3 -> 7.35 | O63: 14700 | P63: =ROUND(P$3*$B63,0) -> 245 | Q63: =P63/P$3 -> 7 | R63: 441 | S63: =ROUND(S$3*$B63,0) -> 70 | U63: 8085 | V63: =ROUND(V$3*$B63,0) -> 140
A64: 62 | B64: 7.1 | C64: 21 | E64: 3745 | F64: =ROUND(F$3*$B64,0) -> 107 | G64: =E64/E$3 -> 7.49 | I64: 2243 | J64: =ROUND(J$3*$B64,0) -> 178 | L64: 2982 | M64: =ROUND(M$3*$B64,0) -> 142 | N64: =O64/O$3 -> 7.47 | O64: 14940 | P64: =ROUND(P$3*$B64,0) -> 249 | Q64: =P64/P$3 -> 7.114285714 | R64: 447 | S64: =ROUND(S$3*$B64,0) -> 71 | U64: 8201 | V64: =ROUND(V$3*$B64,0) -> 142
A65: 63 | B65: 7.2 | C65: 21 | E65: 3780 | F65: =ROUND(F$3*$B65,0) -> 108 | G65: =E65/E$3 -> 7.56 | I65: 2268 | J65: =ROUND(J$3*$B65,0) -> 180 | L65: 3024 | M65: =ROUND(M$3*$B65,0) -> 144 | N65: =O65/O$3 -> 7.56 | O65: 15120 | P65: =ROUND(P$3*$B65,0) -> 252 | Q65: =P65/P$3 -> 7.2 | R65: 454 | S65: =ROUND(S$3*$B65,0) -> 72 | U65: 8316 | V65: =ROUND(V$3*$B65,0) -> 144
A66: 64 | B66: 7.3 | C66: 21 | E66: 3850 | F66: =ROUND(F$3*$B66,0) -> 110 | G66: =E66/E$3 -> 7.7 | I66: 2306 | J66: =ROUND(J$3*$B66,0) -> 183 | L66: 3066 | M66: =ROUND(M$3*$B66,0) -> 146 | N66: =O66/O$3 -> 7.68 | O66: 15360 | P66: =ROUND(P$3*$B66,0) -> 256 | Q66: =P66/P$3 -> 7.314285714 | R66: 460 | S66: =ROUND(S$3*$B66,0) -> 73 | U66: 8432 | V66: =ROUND(V$3*$B66,0) -> 146
A67: 65 | B67: 7.4 | C67: =VLOOKUP(A67,Y$25:Z$31,2) -> 21 | E67: =ROUND(AB$8*F67*$C67,0) -> 3885 | F67: =ROUND(F$3*$B67,0) -> 111 | G67: =E67/E$3 -> 7.77 | I67: =ROUND(AB$9*J67*$C67,0) -> 2331 | J67: =ROUND(J$3*$B67,0) -> 185 | L67: =ROUND(AB$10*M67*$C67,0) -> 3108 | M67: =ROUND(M$3*$B67,0) -> 148 | N67: =O67/O$3 -> 7.77 | O67: =ROUND(AB$13*P67*$C67,0) -> 15540 | P67: =ROUND(P$3*$B67,0) -> 259 | Q67: =P67/P$3 -> 7.4 | R67: =ROUND(AB$14*S67*$C67,0) -> 466 | S67: =ROUND(S$3*$B67,0) -> 74 | U67: =ROUND(AB$15*V67*$C67,0) -> 8547 | V67: =ROUND(V$3*$B67,0) -> 148
A68: 66 | B68: 7.5 | C68: 21 | E68: 3955 | F68: =ROUND(F$3*$B68,0) -> 113 | G68: =E68/E$3 -> 7.91 | I68: 2369 | J68: =ROUND(J$3*$B68,0) -> 188 | L68: 3150 | M68: =ROUND(M$3*$B68,0) -> 150 | N68: =O68/O$3 -> 7.89 | O68: 15780 | P68: =ROUND(P$3*$B68,0) -> 263 | Q68: =P68/P$3 -> 7.514285714 | R68: 473 | S68: =ROUND(S$3*$B68,0) -> 75 | U68: 8663 | V68: =ROUND(V$3*$B68,0) -> 150
A69: 67 | B69: 7.6 | C69: 21 | E69: 3990 | F69: =ROUND(F$3*$B69,0) -> 114 | G69: =E69/E$3 -> 7.98 | I69: 2394 | J69: =ROUND(J$3*$B69,0) -> 190 | L69: 3192 | M69: =ROUND(M$3*$B69,0) -> 152 | N69: =O69/O$3 -> 7.98 | O69: 15960 | P69: =ROUND(P$3*$B69,0) -> 266 | Q69: =P69/P$3 -> 7.6 | R69: 479 | S69: =ROUND(S$3*$B69,0) -> 76 | U69: 8778 | V69: =ROUND(V$3*$B69,0) -> 152
A70: 68 | B70: 7.7 | C70: 21 | E70: 4060 | F70: =ROUND(F$3*$B70,0) -> 116 | G70: =E70/E$3 -> 8.12 | I70: 2432 | J70: =ROUND(J$3*$B70,0) -> 193 | L70: 3234 | M70: =ROUND(M$3*$B70,0) -> 154 | N70: =O70/O$3 -> 8.1 | O70: 16200 | P70: =ROUND(P$3*$B70,0) -> 270 | Q70: =P70/P$3 -> 7.714285714 | R70: 485 | S70: =ROUND(S$3*$B70,0) -> 77 | U70: 8894 | V70: =ROUND(V$3*$B70,0) -> 154
A71: 69 | B71: 7.8 | C71: 21 | E71: 4095 | F71: =ROUND(F$3*$B71,0) -> 117 | G71: =E71/E$3 -> 8.19 | I71: 2457 | J71: =ROUND(J$3*$B71,0) -> 195 | L71: 3276 | M71: =ROUND(M$3*$B71,0) -> 156 | N71: =O71/O$3 -> 8.19 | O71: 16380 | P71: =ROUND(P$3*$B71,0) -> 273 | Q71: =P71/P$3 -> 7.8 | R71: 491 | S71: =ROUND(S$3*$B71,0) -> 78 | U71: 9009 | V71: =ROUND(V$3*$B71,0) -> 156
A72: 70 | B72: 7.9 | C72: 21 | E72: 4165 | F72: =ROUND(F$3*$B72,0) -> 119 | G72: =E72/E$3 -> 8.33 | I72: 2495 | J72: =ROUND(J$3*$B72,0) -> 198 | L72: 3318 | M72: =ROUND(M$3*$B72,0) -> 158 | N72: =O72/O$3 -> 8.31 | O72: 16620 | P72: =ROUND(P$3*$B72,0) -> 277 | Q72: =P72/P$3 -> 7.914285714 | R72: 498 | S72: =ROUND(S$3*$B72,0) -> 79 | U72: 9125 | V72: =ROUND(V$3*$B72,0) -> 158
A73: 71 | B73: 8 | C73: 21 | E73: 4200 | F73: =ROUND(F$3*$B73,0) -> 120 | G73: =E73/E$3 -> 8.4 | I73: 2520 | J73: =ROUND(J$3*$B73,0) -> 200 | L73: 3360 | M73: =ROUND(M$3*$B73,0) -> 160 | N73: =O73/O$3 -> 8.4 | O73: 16800 | P73: =ROUND(P$3*$B73,0) -> 280 | Q73: =P73/P$3 -> 8 | R73: 504 | S73: =ROUND(S$3*$B73,0) -> 80 | U73: 9240 | V73: =ROUND(V$3*$B73,0) -> 160
A74: 72 | B74: 8.1 | C74: 21 | E74: 4270 | F74: =ROUND(F$3*$B74,0) -> 122 | G74: =E74/E$3 -> 8.54 | I74: 2558 | J74: =ROUND(J$3*$B74,0) -> 203 | L74: 3402 | M74: =ROUND(M$3*$B74,0) -> 162 | N74: =O74/O$3 -> 8.52 | O74: 17040 | P74: =ROUND(P$3*$B74,0) -> 284 | Q74: =P74/P$3 -> 8.114285714 | R74: 510 | S74: =ROUND(S$3*$B74,0) -> 81 | U74: 9356 | V74: =ROUND(V$3*$B74,0) -> 162
A75: 73 | B75: 8.2 | C75: 21 | E75: 4305 | F75: =ROUND(F$3*$B75,0) -> 123 | G75: =E75/E$3 -> 8.61 | I75: 2583 | J75: =ROUND(J$3*$B75,0) -> 205 | L75: 3444 | M75: =ROUND(M$3*$B75,0) -> 164 | N75: =O75/O$3 -> 8.61 | O75: 17220 | P75: =ROUND(P$3*$B75,0) -> 287 | Q75: =P75/P$3 -> 8.2 | R75: 517 | S75: =ROUND(S$3*$B75,0) -> 82 | U75: 9471 | V75: =ROUND(V$3*$B75,0) -> 164
A76: 74 | B76: 8.3 | C76: 21 | E76: 4375 | F76: =ROUND(F$3*$B76,0) -> 125 | G76: =E76/E$3 -> 8.75 | I76: 2621 | J76: =ROUND(J$3*$B76,0) -> 208 | L76: 3486 | M76: =ROUND(M$3*$B76,0) -> 166 | N76: =O76/O$3 -> 8.73 | O76: 17460 | P76: =ROUND(P$3*$B76,0) -> 291 | Q76: =P76/P$3 -> 8.314285714 | R76: 523 | S76: =ROUND(S$3*$B76,0) -> 83 | U76: 9587 | V76: =ROUND(V$3*$B76,0) -> 166
A77: 75 | B77: 8.4 | C77: 21 | E77: 4410 | F77: =ROUND(F$3*$B77,0) -> 126 | G77: =E77/E$3 -> 8.82 | I77: 2646 | J77: =ROUND(J$3*$B77,0) -> 210 | L77: 3528 | M77: =ROUND(M$3*$B77,0) -> 168 | N77: =O77/O$3 -> 8.82 | O77: 17640 | P77: =ROUND(P$3*$B77,0) -> 294 | Q77: =P77/P$3 -> 8.4 | R77: 529 | S77: =ROUND(S$3*$B77,0) -> 84 | U77: 9702 | V77: =ROUND(V$3*$B77,0) -> 168
A78: 76 | B78: 8.5 | C78: 21 | E78: 4480 | F78: =ROUND(F$3*$B78,0) -> 128 | G78: =E78/E$3 -> 8.96 | I78: 2684 | J78: =ROUND(J$3*$B78,0) -> 213 | L78: 3570 | M78: =ROUND(M$3*$B78,0) -> 170 | N78: =O78/O$3 -> 8.94 | O78: 17880 | P78: =ROUND(P$3*$B78,0) -> 298 | Q78: =P78/P$3 -> 8.514285714 | R78: 536 | S78: =ROUND(S$3*$B78,0) -> 85 | U78: 9818 | V78: =ROUND(V$3*$B78,0) -> 170
A79: 77 | B79: 8.6 | C79: 21 | E79: 4515 | F79: =ROUND(F$3*$B79,0) -> 129 | G79: =E79/E$3 -> 9.03 | I79: 2709 | J79: =ROUND(J$3*$B79,0) -> 215 | L79: 3612 | M79: =ROUND(M$3*$B79,0) -> 172 | N79: =O79/O$3 -> 9.03 | O79: 18060 | P79: =ROUND(P$3*$B79,0) -> 301 | Q79: =P79/P$3 -> 8.6 | R79: 542 | S79: =ROUND(S$3*$B79,0) -> 86 | U79: 9933 | V79: =ROUND(V$3*$B79,0) -> 172
A80: 78 | B80: 8.7 | C80: 21 | E80: 4585 | F80: =ROUND(F$3*$B80,0) -> 131 | G80: =E80/E$3 -> 9.17 | I80: 2747 | J80: =ROUND(J$3*$B80,0) -> 218 | L80: 3654 | M80: =ROUND(M$3*$B80,0) -> 174 | N80: =O80/O$3 -> 9.15 | O80: 18300 | P80: =ROUND(P$3*$B80,0) -> 305 | Q80: =P80/P$3 -> 8.714285714 | R80: 548 | S80: =ROUND(S$3*$B80,0) -> 87 | U80: 10049 | V80: =ROUND(V$3*$B80,0) -> 174
A81: 79 | B81: 8.8 | C81: 21 | E81: 4620 | F81: =ROUND(F$3*$B81,0) -> 132 | G81: =E81/E$3 -> 9.24 | I81: 2772 | J81: =ROUND(J$3*$B81,0) -> 220 | L81: 3696 | M81: =ROUND(M$3*$B81,0) -> 176 | N81: =O81/O$3 -> 9.24 | O81: 18480 | P81: =ROUND(P$3*$B81,0) -> 308 | Q81: =P81/P$3 -> 8.8 | R81: 554 | S81: =ROUND(S$3*$B81,0) -> 88 | U81: 10164 | V81: =ROUND(V$3*$B81,0) -> 176
A82: 80 | B82: 8.9 | C82: 21 | E82: 4690 | F82: =ROUND(F$3*$B82,0) -> 134 | G82: =E82/E$3 -> 9.38 | I82: 2810 | J82: =ROUND(J$3*$B82,0) -> 223 | L82: 3738 | M82: =ROUND(M$3*$B82,0) -> 178 | N82: =O82/O$3 -> 9.36 | O82: 18720 | P82: =ROUND(P$3*$B82,0) -> 312 | Q82: =P82/P$3 -> 8.914285714 | R82: 561 | S82: =ROUND(S$3*$B82,0) -> 89 | U82: 10280 | V82: =ROUND(V$3*$B82,0) -> 178
A83: 81 | B83: 9 | C83: 21 | E83: 4725 | F83: =ROUND(F$3*$B83,0) -> 135 | G83: =E83/E$3 -> 9.45 | I83: 2835 | J83: =ROUND(J$3*$B83,0) -> 225 | L83: 3780 | M83: =ROUND(M$3*$B83,0) -> 180 | N83: =O83/O$3 -> 9.45 | O83: 18900 | P83: =ROUND(P$3*$B83,0) -> 315 | Q83: =P83/P$3 -> 9 | R83: 567 | S83: =ROUND(S$3*$B83,0) -> 90 | U83: 10395 | V83: =ROUND(V$3*$B83,0) -> 180
A84: 82 | B84: 9.1 | C84: 21 | E84: 4795 | F84: =ROUND(F$3*$B84,0) -> 137 | G84: =E84/E$3 -> 9.59 | I84: 2873 | J84: =ROUND(J$3*$B84,0) -> 228 | L84: 3822 | M84: =ROUND(M$3*$B84,0) -> 182 | N84: =O84/O$3 -> 9.57 | O84: 19140 | P84: =ROUND(P$3*$B84,0) -> 319 | Q84: =P84/P$3 -> 9.114285714 | R84: 573 | S84: =ROUND(S$3*$B84,0) -> 91 | U84: 10511 | V84: =ROUND(V$3*$B84,0) -> 182
A85: 83 | B85: 9.2 | C85: 21 | E85: 4830 | F85: =ROUND(F$3*$B85,0) -> 138 | G85: =E85/E$3 -> 9.66 | I85: 2898 | J85: =ROUND(J$3*$B85,0) -> 230 | L85: 3864 | M85: =ROUND(M$3*$B85,0) -> 184 | N85: =O85/O$3 -> 9.66 | O85: 19320 | P85: =ROUND(P$3*$B85,0) -> 322 | Q85: =P85/P$3 -> 9.2 | R85: 580 | S85: =ROUND(S$3*$B85,0) -> 92 | U85: 10626 | V85: =ROUND(V$3*$B85,0) -> 184
A86: 84 | B86: 9.3 | C86: 21 | E86: 4900 | F86: =ROUND(F$3*$B86,0) -> 140 | G86: =E86/E$3 -> 9.8 | I86: 2936 | J86: =ROUND(J$3*$B86,0) -> 233 | L86: 3906 | M86: =ROUND(M$3*$B86,0) -> 186 | N86: =O86/O$3 -> 9.78 | O86: 19560 | P86: =ROUND(P$3*$B86,0) -> 326 | Q86: =P86/P$3 -> 9.314285714 | R86: 586 | S86: =ROUND(S$3*$B86,0) -> 93 | U86: 10742 | V86: =ROUND(V$3*$B86,0) -> 186
A87: 85 | B87: 9.4 | C87: 21 | E87: 4935 | F87: =ROUND(F$3*$B87,0) -> 141 | G87: =E87/E$3 -> 9.87 | I87: 2961 | J87: =ROUND(J$3*$B87,0) -> 235 | L87: 3948 | M87: =ROUND(M$3*$B87,0) -> 188 | N87: =O87/O$3 -> 9.87 | O87: 19740 | P87: =ROUND(P$3*$B87,0) -> 329 | Q87: =P87/P$3 -> 9.4 | R87: 592 | S87: =ROUND(S$3*$B87,0) -> 94 | U87: 10857 | V87: =ROUND(V$3*$B87,0) -> 188
A88: 86 | B88: 9.5 | C88: 21 | E88: 5005 | F88: =ROUND(F$3*$B88,0) -> 143 | G88: =E88/E$3 -> 10.01 | I88: 2999 | J88: =ROUND(J$3*$B88,0) -> 238 | L88: 3990 | M88: =ROUND(M$3*$B88,0) -> 190 | N88: =O88/O$3 -> 9.99 | O88: 19980 | P88: =ROUND(P$3*$B88,0) -> 333 | Q88: =P88/P$3 -> 9.514285714 | R88: 599 | S88: =ROUND(S$3*$B88,0) -> 95 | U88: 10973 | V88: =ROUND(V$3*$B88,0) -> 190
A89: 87 | B89: 9.6 | C89: 21 | E89: 5040 | F89: =ROUND(F$3*$B89,0) -> 144 | G89: =E89/E$3 -> 10.08 | I89: 3024 | J89: =ROUND(J$3*$B89,0) -> 240 | L89: 4032 | M89: =ROUND(M$3*$B89,0) -> 192 | N89: =O89/O$3 -> 10.08 | O89: 20160 | P89: =ROUND(P$3*$B89,0) -> 336 | Q89: =P89/P$3 -> 9.6 | R89: 605 | S89: =ROUND(S$3*$B89,0) -> 96 | U89: 11088 | V89: =ROUND(V$3*$B89,0) -> 192
A90: 88 | B90: 9.7 | C90: 21 | E90: 5110 | F90: =ROUND(F$3*$B90,0) -> 146 | G90: =E90/E$3 -> 10.22 | I90: 3062 | J90: =ROUND(J$3*$B90,0) -> 243 | L90: 4074 | M90: =ROUND(M$3*$B90,0) -> 194 | N90: =O90/O$3 -> 10.2 | O90: 20400 | P90: =ROUND(P$3*$B90,0) -> 340 | Q90: =P90/P$3 -> 9.714285714 | R90: 611 | S90: =ROUND(S$3*$B90,0) -> 97 | U90: 11204 | V90: =ROUND(V$3*$B90,0) -> 194
A91: 89 | B91: 9.8 | C91: 21 | E91: 5145 | F91: =ROUND(F$3*$B91,0) -> 147 | G91: =E91/E$3 -> 10.29 | I91: 3087 | J91: =ROUND(J$3*$B91,0) -> 245 | L91: 4116 | M91: =ROUND(M$3*$B91,0) -> 196 | N91: =O91/O$3 -> 10.29 | O91: 20580 | P91: =ROUND(P$3*$B91,0) -> 343 | Q91: =P91/P$3 -> 9.8 | R91: 617 | S91: =ROUND(S$3*$B91,0) -> 98 | U91: 11319 | V91: =ROUND(V$3*$B91,0) -> 196
A92: 90 | B92: 9.9 | C92: 21 | E92: 5215 | F92: =ROUND(F$3*$B92,0) -> 149 | G92: =E92/E$3 -> 10.43 | I92: 3125 | J92: =ROUND(J$3*$B92,0) -> 248 | L92: 4158 | M92: =ROUND(M$3*$B92,0) -> 198 | N92: =O92/O$3 -> 10.41 | O92: 20820 | P92: =ROUND(P$3*$B92,0) -> 347 | Q92: =P92/P$3 -> 9.914285714 | R92: 624 | S92: =ROUND(S$3*$B92,0) -> 99 | U92: 11435 | V92: =ROUND(V$3*$B92,0) -> 198
A93: 91 | B93: 10 | C93: 21 | E93: 5250 | F93: =ROUND(F$3*$B93,0) -> 150 | G93: =E93/E$3 -> 10.5 | I93: 3150 | J93: =ROUND(J$3*$B93,0) -> 250 | L93: 4200 | M93: =ROUND(M$3*$B93,0) -> 200 | N93: =O93/O$3 -> 10.5 | O93: 21000 | P93: =ROUND(P$3*$B93,0) -> 350 | Q93: =P93/P$3 -> 10 | R93: 630 | S93: =ROUND(S$3*$B93,0) -> 100 | U93: 11550 | V93: =ROUND(V$3*$B93,0) -> 200
A94: 92 | B94: 10.1 | C94: 21 | E94: 5320 | F94: =ROUND(F$3*$B94,0) -> 152 | G94: =E94/E$3 -> 10.64 | I94: 3188 | J94: =ROUND(J$3*$B94,0) -> 253 | L94: 4242 | M94: =ROUND(M$3*$B94,0) -> 202 | N94: =O94/O$3 -> 10.62 | O94: 21240 | P94: =ROUND(P$3*$B94,0) -> 354 | Q94: =P94/P$3 -> 10.11428571 | R94: 636 | S94: =ROUND(S$3*$B94,0) -> 101 | U94: 11666 | V94: =ROUND(V$3*$B94,0) -> 202
A95: 93 | B95: 10.2 | C95: 21 | E95: 5355 | F95: =ROUND(F$3*$B95,0) -> 153 | G95: =E95/E$3 -> 10.71 | I95: 3213 | J95: =ROUND(J$3*$B95,0) -> 255 | L95: 4284 | M95: =ROUND(M$3*$B95,0) -> 204 | N95: =O95/O$3 -> 10.71 | O95: 21420 | P95: =ROUND(P$3*$B95,0) -> 357 | Q95: =P95/P$3 -> 10.2 | R95: 643 | S95: =ROUND(S$3*$B95,0) -> 102 | U95: 11781 | V95: =ROUND(V$3*$B95,0) -> 204
A96: 94 | B96: 10.3 | C96: 21 | E96: 5425 | F96: =ROUND(F$3*$B96,0) -> 155 | G96: =E96/E$3 -> 10.85 | I96: 3251 | J96: =ROUND(J$3*$B96,0) -> 258 | L96: 4326 | M96: =ROUND(M$3*$B96,0) -> 206 | N96: =O96/O$3 -> 10.83 | O96: 21660 | P96: =ROUND(P$3*$B96,0) -> 361 | Q96: =P96/P$3 -> 10.31428571 | R96: 649 | S96: =ROUND(S$3*$B96,0) -> 103 | U96: 11897 | V96: =ROUND(V$3*$B96,0) -> 206
A97: 95 | B97: 10.4 | C97: 21 | E97: 5460 | F97: =ROUND(F$3*$B97,0) -> 156 | G97: =E97/E$3 -> 10.92 | I97: 3276 | J97: =ROUND(J$3*$B97,0) -> 260 | L97: 4368 | M97: =ROUND(M$3*$B97,0) -> 208 | N97: =O97/O$3 -> 10.92 | O97: 21840 | P97: =ROUND(P$3*$B97,0) -> 364 | Q97: =P97/P$3 -> 10.4 | R97: 655 | S97: =ROUND(S$3*$B97,0) -> 104 | U97: 12012 | V97: =ROUND(V$3*$B97,0) -> 208
A98: 96 | B98: 10.5 | C98: 21 | E98: 5530 | F98: =ROUND(F$3*$B98,0) -> 158 | G98: =E98/E$3 -> 11.06 | I98: 3314 | J98: =ROUND(J$3*$B98,0) -> 263 | L98: 4410 | M98: =ROUND(M$3*$B98,0) -> 210 | N98: =O98/O$3 -> 11.04 | O98: 22080 | P98: =ROUND(P$3*$B98,0) -> 368 | Q98: =P98/P$3 -> 10.51428571 | R98: 662 | S98: =ROUND(S$3*$B98,0) -> 105 | U98: 12128 | V98: =ROUND(V$3*$B98,0) -> 210
A99: 97 | B99: 10.6 | C99: 21 | E99: 5565 | F99: =ROUND(F$3*$B99,0) -> 159 | G99: =E99/E$3 -> 11.13 | I99: 3339 | J99: =ROUND(J$3*$B99,0) -> 265 | L99: 4452 | M99: =ROUND(M$3*$B99,0) -> 212 | N99: =O99/O$3 -> 11.13 | O99: 22260 | P99: =ROUND(P$3*$B99,0) -> 371 | Q99: =P99/P$3 -> 10.6 | R99: 668 | S99: =ROUND(S$3*$B99,0) -> 106 | U99: 12243 | V99: =ROUND(V$3*$B99,0) -> 212
A100: 98 | B100: 10.7 | C100: 21 | E100: 5635 | F100: =ROUND(F$3*$B100,0) -> 161 | G100: =E100/E$3 -> 11.27 | I100: 3377 | J100: =ROUND(J$3*$B100,0) -> 268 | L100: 4494 | M100: =ROUND(M$3*$B100,0) -> 214 | N100: =O100/O$3 -> 11.25 | O100: 22500 | P100: =ROUND(P$3*$B100,0) -> 375 | Q100: =P100/P$3 -> 10.71428571 | R100: 674 | S100: =ROUND(S$3*$B100,0) -> 107 | U100: 12359 | V100: =ROUND(V$3*$B100,0) -> 214
A101: 99 | B101: 10.8 | C101: 21 | E101: 5670 | F101: =ROUND(F$3*$B101,0) -> 162 | G101: =E101/E$3 -> 11.34 | I101: 3402 | J101: =ROUND(J$3*$B101,0) -> 270 | L101: 4536 | M101: =ROUND(M$3*$B101,0) -> 216 | N101: =O101/O$3 -> 11.34 | O101: 22680 | P101: =ROUND(P$3*$B101,0) -> 378 | Q101: =P101/P$3 -> 10.8 | R101: 680 | S101: =ROUND(S$3*$B101,0) -> 108 | U101: 12474 | V101: =ROUND(V$3*$B101,0) -> 216
A102: 100 | B102: 10.9 | C102: 22 | E102: 6013 | F102: =ROUND(F$3*$B102,0) -> 164 | G102: =E102/E$3 -> 12.026 | I102: 3604 | J102: =ROUND(J$3*$B102,0) -> 273 | L102: 4796 | M102: =ROUND(M$3*$B102,0) -> 218 | N102: =O102/O$3 -> 12.0055 | O102: 24011 | P102: =ROUND(P$3*$B102,0) -> 382 | Q102: =P102/P$3 -> 10.91428571 | R102: 719 | S102: =ROUND(S$3*$B102,0) -> 109 | U102: 13189 | V102: =ROUND(V$3*$B102,0) -> 218
A103: 101 | B103: 11 | C103: 22 | E103: 6050 | F103: =ROUND(F$3*$B103,0) -> 165 | G103: =E103/E$3 -> 12.1 | I103: 3630 | J103: =ROUND(J$3*$B103,0) -> 275 | L103: 4840 | M103: =ROUND(M$3*$B103,0) -> 220 | N103: =O103/O$3 -> 12.1 | O103: 24200 | P103: =ROUND(P$3*$B103,0) -> 385 | Q103: =P103/P$3 -> 11 | R103: 726 | S103: =ROUND(S$3*$B103,0) -> 110 | U103: 13310 | V103: =ROUND(V$3*$B103,0) -> 220
A104: 102 | B104: 11.1 | C104: 22 | E104: 6123 | F104: =ROUND(F$3*$B104,0) -> 167 | G104: =E104/E$3 -> 12.246 | I104: 3670 | J104: =ROUND(J$3*$B104,0) -> 278 | L104: 4884 | M104: =ROUND(M$3*$B104,0) -> 222 | N104: =O104/O$3 -> 12.2255 | O104: 24451 | P104: =ROUND(P$3*$B104,0) -> 389 | Q104: =P104/P$3 -> 11.11428571 | R104: 733 | S104: =ROUND(S$3*$B104,0) -> 111 | U104: 13431 | V104: =ROUND(V$3*$B104,0) -> 222
A105: 103 | B105: 11.2 | C105: 22 | E105: 6160 | F105: =ROUND(F$3*$B105,0) -> 168 | G105: =E105/E$3 -> 12.32 | I105: 3696 | J105: =ROUND(J$3*$B105,0) -> 280 | L105: 4928 | M105: =ROUND(M$3*$B105,0) -> 224 | N105: =O105/O$3 -> 12.32 | O105: 24640 | P105: =ROUND(P$3*$B105,0) -> 392 | Q105: =P105/P$3 -> 11.2 | R105: 739 | S105: =ROUND(S$3*$B105,0) -> 112 | U105: 13552 | V105: =ROUND(V$3*$B105,0) -> 224
A106: 104 | B106: 11.3 | C106: 22 | E106: 6233 | F106: =ROUND(F$3*$B106,0) -> 170 | G106: =E106/E$3 -> 12.466 | I106: 3736 | J106: =ROUND(J$3*$B106,0) -> 283 | L106: 4972 | M106: =ROUND(M$3*$B106,0) -> 226 | N106: =O106/O$3 -> 12.4455 | O106: 24891 | P106: =ROUND(P$3*$B106,0) -> 396 | Q106: =P106/P$3 -> 11.31428571 | R106: 746 | S106: =ROUND(S$3*$B106,0) -> 113 | U106: 13673 | V106: =ROUND(V$3*$B106,0) -> 226
A107: 105 | B107: 11.4 | C107: 22 | E107: 6270 | F107: =ROUND(F$3*$B107,0) -> 171 | G107: =E107/E$3 -> 12.54 | I107: 3762 | J107: =ROUND(J$3*$B107,0) -> 285 | L107: 5016 | M107: =ROUND(M$3*$B107,0) -> 228 | N107: =O107/O$3 -> 12.54 | O107: 25080 | P107: =ROUND(P$3*$B107,0) -> 399 | Q107: =P107/P$3 -> 11.4 | R107: 752 | S107: =ROUND(S$3*$B107,0) -> 114 | U107: 13794 | V107: =ROUND(V$3*$B107,0) -> 228
A108: 106 | B108: 11.5 | C108: 22 | E108: 6343 | F108: =ROUND(F$3*$B108,0) -> 173 | G108: =E108/E$3 -> 12.686 | I108: 3802 | J108: =ROUND(J$3*$B108,0) -> 288 | L108: 5060 | M108: =ROUND(M$3*$B108,0) -> 230 | N108: =O108/O$3 -> 12.6655 | O108: 25331 | P108: =ROUND(P$3*$B108,0) -> 403 | Q108: =P108/P$3 -> 11.51428571 | R108: 759 | S108: =ROUND(S$3*$B108,0) -> 115 | U108: 13915 | V108: =ROUND(V$3*$B108,0) -> 230
A109: 107 | B109: 11.6 | C109: 22 | E109: 6380 | F109: =ROUND(F$3*$B109,0) -> 174 | G109: =E109/E$3 -> 12.76 | I109: 3828 | J109: =ROUND(J$3*$B109,0) -> 290 | L109: 5104 | M109: =ROUND(M$3*$B109,0) -> 232 | N109: =O109/O$3 -> 12.76 | O109: 25520 | P109: =ROUND(P$3*$B109,0) -> 406 | Q109: =P109/P$3 -> 11.6 | R109: 766 | S109: =ROUND(S$3*$B109,0) -> 116 | U109: 14036 | V109: =ROUND(V$3*$B109,0) -> 232
A110: 108 | B110: 11.7 | C110: 22 | E110: 6453 | F110: =ROUND(F$3*$B110,0) -> 176 | G110: =E110/E$3 -> 12.906 | I110: 3868 | J110: =ROUND(J$3*$B110,0) -> 293 | L110: 5148 | M110: =ROUND(M$3*$B110,0) -> 234 | N110: =O110/O$3 -> 12.8855 | O110: 25771 | P110: =ROUND(P$3*$B110,0) -> 410 | Q110: =P110/P$3 -> 11.71428571 | R110: 772 | S110: =ROUND(S$3*$B110,0) -> 117 | U110: 14157 | V110: =ROUND(V$3*$B110,0) -> 234
A111: 109 | B111: 11.8 | C111: 22 | E111: 6490 | F111: =ROUND(F$3*$B111,0) -> 177 | G111: =E111/E$3 -> 12.98 | I111: 3894 | J111: =ROUND(J$3*$B111,0) -> 295 | L111: 5192 | M111: =ROUND(M$3*$B111,0) -> 236 | N111: =O111/O$3 -> 12.98 | O111: 25960 | P111: =ROUND(P$3*$B111,0) -> 413 | Q111: =P111/P$3 -> 11.8 | R111: 779 | S111: =ROUND(S$3*$B111,0) -> 118 | U111: 14278 | V111: =ROUND(V$3*$B111,0) -> 236
A112: 110 | B112: 11.9 | C112: 22 | E112: 6563 | F112: =ROUND(F$3*$B112,0) -> 179 | G112: =E112/E$3 -> 13.126 | I112: 3934 | J112: =ROUND(J$3*$B112,0) -> 298 | L112: 5236 | M112: =ROUND(M$3*$B112,0) -> 238 | N112: =O112/O$3 -> 13.1055 | O112: 26211 | P112: =ROUND(P$3*$B112,0) -> 417 | Q112: =P112/P$3 -> 11.91428571 | R112: 785 | S112: =ROUND(S$3*$B112,0) -> 119 | U112: 14399 | V112: =ROUND(V$3*$B112,0) -> 238
A113: 111 | B113: 12 | C113: 22 | E113: 6600 | F113: =ROUND(F$3*$B113,0) -> 180 | G113: =E113/E$3 -> 13.2 | I113: 3960 | J113: =ROUND(J$3*$B113,0) -> 300 | L113: 5280 | M113: =ROUND(M$3*$B113,0) -> 240 | N113: =O113/O$3 -> 13.2 | O113: 26400 | P113: =ROUND(P$3*$B113,0) -> 420 | Q113: =P113/P$3 -> 12 | R113: 792 | S113: =ROUND(S$3*$B113,0) -> 120 | U113: 14520 | V113: =ROUND(V$3*$B113,0) -> 240
A114: 112 | B114: 12.1 | C114: 22 | E114: 6673 | F114: =ROUND(F$3*$B114,0) -> 182 | G114: =E114/E$3 -> 13.346 | I114: 4000 | J114: =ROUND(J$3*$B114,0) -> 303 | L114: 5324 | M114: =ROUND(M$3*$B114,0) -> 242 | N114: =O114/O$3 -> 13.3255 | O114: 26651 | P114: =ROUND(P$3*$B114,0) -> 424 | Q114: =P114/P$3 -> 12.11428571 | R114: 799 | S114: =ROUND(S$3*$B114,0) -> 121 | U114: 14641 | V114: =ROUND(V$3*$B114,0) -> 242
A115: 113 | B115: 12.2 | C115: 22 | E115: 6710 | F115: =ROUND(F$3*$B115,0) -> 183 | G115: =E115/E$3 -> 13.42 | I115: 4026 | J115: =ROUND(J$3*$B115,0) -> 305 | L115: 5368 | M115: =ROUND(M$3*$B115,0) -> 244 | N115: =O115/O$3 -> 13.42 | O115: 26840 | P115: =ROUND(P$3*$B115,0) -> 427 | Q115: =P115/P$3 -> 12.2 | R115: 805 | S115: =ROUND(S$3*$B115,0) -> 122 | U115: 14762 | V115: =ROUND(V$3*$B115,0) -> 244
A116: 114 | B116: 12.3 | C116: 22 | E116: 6783 | F116: =ROUND(F$3*$B116,0) -> 185 | G116: =E116/E$3 -> 13.566 | I116: 4066 | J116: =ROUND(J$3*$B116,0) -> 308 | L116: 5412 | M116: =ROUND(M$3*$B116,0) -> 246 | N116: =O116/O$3 -> 13.5455 | O116: 27091 | P116: =ROUND(P$3*$B116,0) -> 431 | Q116: =P116/P$3 -> 12.31428571 | R116: 812 | S116: =ROUND(S$3*$B116,0) -> 123 | U116: 14883 | V116: =ROUND(V$3*$B116,0) -> 246
A117: 115 | B117: 12.4 | C117: 22 | E117: 6820 | F117: =ROUND(F$3*$B117,0) -> 186 | G117: =E117/E$3 -> 13.64 | I117: 4092 | J117: =ROUND(J$3*$B117,0) -> 310 | L117: 5456 | M117: =ROUND(M$3*$B117,0) -> 248 | N117: =O117/O$3 -> 13.64 | O117: 27280 | P117: =ROUND(P$3*$B117,0) -> 434 | Q117: =P117/P$3 -> 12.4 | R117: 818 | S117: =ROUND(S$3*$B117,0) -> 124 | U117: 15004 | V117: =ROUND(V$3*$B117,0) -> 248
A118: 116 | B118: 12.5 | C118: 22 | E118: 6893 | F118: =ROUND(F$3*$B118,0) -> 188 | G118: =E118/E$3 -> 13.786 | I118: 4132 | J118: =ROUND(J$3*$B118,0) -> 313 | L118: 5500 | M118: =ROUND(M$3*$B118,0) -> 250 | N118: =O118/O$3 -> 13.7655 | O118: 27531 | P118: =ROUND(P$3*$B118,0) -> 438 | Q118: =P118/P$3 -> 12.51428571 | R118: 825 | S118: =ROUND(S$3*$B118,0) -> 125 | U118: 15125 | V118: =ROUND(V$3*$B118,0) -> 250
A119: 117 | B119: 12.6 | C119: 22 | E119: 6930 | F119: =ROUND(F$3*$B119,0) -> 189 | G119: =E119/E$3 -> 13.86 | I119: 4158 | J119: =ROUND(J$3*$B119,0) -> 315 | L119: 5544 | M119: =ROUND(M$3*$B119,0) -> 252 | N119: =O119/O$3 -> 13.86 | O119: 27720 | P119: =ROUND(P$3*$B119,0) -> 441 | Q119: =P119/P$3 -> 12.6 | R119: 832 | S119: =ROUND(S$3*$B119,0) -> 126 | U119: 15246 | V119: =ROUND(V$3*$B119,0) -> 252
A120: 118 | B120: 12.7 | C120: 22 | E120: 7003 | F120: =ROUND(F$3*$B120,0) -> 191 | G120: =E120/E$3 -> 14.006 | I120: 4198 | J120: =ROUND(J$3*$B120,0) -> 318 | L120: 5588 | M120: =ROUND(M$3*$B120,0) -> 254 | N120: =O120/O$3 -> 13.9855 | O120: 27971 | P120: =ROUND(P$3*$B120,0) -> 445 | Q120: =P120/P$3 -> 12.71428571 | R120: 838 | S120: =ROUND(S$3*$B120,0) -> 127 | U120: 15367 | V120: =ROUND(V$3*$B120,0) -> 254
A121: 119 | B121: 12.8 | C121: 22 | E121: 7040 | F121: =ROUND(F$3*$B121,0) -> 192 | G121: =E121/E$3 -> 14.08 | I121: 4224 | J121: =ROUND(J$3*$B121,0) -> 320 | L121: 5632 | M121: =ROUND(M$3*$B121,0) -> 256 | N121: =O121/O$3 -> 14.08 | O121: 28160 | P121: =ROUND(P$3*$B121,0) -> 448 | Q121: =P121/P$3 -> 12.8 | R121: 845 | S121: =ROUND(S$3*$B121,0) -> 128 | U121: 15488 | V121: =ROUND(V$3*$B121,0) -> 256
A122: 120 | B122: 12.9 | C122: 22 | E122: 7113 | F122: =ROUND(F$3*$B122,0) -> 194 | G122: =E122/E$3 -> 14.226 | I122: 4264 | J122: =ROUND(J$3*$B122,0) -> 323 | L122: 5676 | M122: =ROUND(M$3*$B122,0) -> 258 | N122: =O122/O$3 -> 14.2055 | O122: 28411 | P122: =ROUND(P$3*$B122,0) -> 452 | Q122: =P122/P$3 -> 12.91428571 | R122: 851 | S122: =ROUND(S$3*$B122,0) -> 129 | U122: 15609 | V122: =ROUND(V$3*$B122,0) -> 258
A123: 121 | B123: 13 | C123: 22 | E123: 7150 | F123: =ROUND(F$3*$B123,0) -> 195 | G123: =E123/E$3 -> 14.3 | I123: 4290 | J123: =ROUND(J$3*$B123,0) -> 325 | L123: 5720 | M123: =ROUND(M$3*$B123,0) -> 260 | N123: =O123/O$3 -> 14.3 | O123: 28600 | P123: =ROUND(P$3*$B123,0) -> 455 | Q123: =P123/P$3 -> 13 | R123: 858 | S123: =ROUND(S$3*$B123,0) -> 130 | U123: 15730 | V123: =ROUND(V$3*$B123,0) -> 260
A124: 122 | B124: 13.1 | C124: 22 | E124: 7223 | F124: =ROUND(F$3*$B124,0) -> 197 | G124: =E124/E$3 -> 14.446 | I124: 4330 | J124: =ROUND(J$3*$B124,0) -> 328 | L124: 5764 | M124: =ROUND(M$3*$B124,0) -> 262 | N124: =O124/O$3 -> 14.4255 | O124: 28851 | P124: =ROUND(P$3*$B124,0) -> 459 | Q124: =P124/P$3 -> 13.11428571 | R124: 865 | S124: =ROUND(S$3*$B124,0) -> 131 | U124: 15851 | V124: =ROUND(V$3*$B124,0) -> 262
A125: 123 | B125: 13.2 | C125: 22 | E125: 7260 | F125: =ROUND(F$3*$B125,0) -> 198 | G125: =E125/E$3 -> 14.52 | I125: 4356 | J125: =ROUND(J$3*$B125,0) -> 330 | L125: 5808 | M125: =ROUND(M$3*$B125,0) -> 264 | N125: =O125/O$3 -> 14.52 | O125: 29040 | P125: =ROUND(P$3*$B125,0) -> 462 | Q125: =P125/P$3 -> 13.2 | R125: 871 | S125: =ROUND(S$3*$B125,0) -> 132 | U125: 15972 | V125: =ROUND(V$3*$B125,0) -> 264
A126: 124 | B126: 13.3 | C126: 22 | E126: 7333 | F126: =ROUND(F$3*$B126,0) -> 200 | G126: =E126/E$3 -> 14.666 | I126: 4396 | J126: =ROUND(J$3*$B126,0) -> 333 | L126: 5852 | M126: =ROUND(M$3*$B126,0) -> 266 | N126: =O126/O$3 -> 14.6455 | O126: 29291 | P126: =ROUND(P$3*$B126,0) -> 466 | Q126: =P126/P$3 -> 13.31428571 | R126: 878 | S126: =ROUND(S$3*$B126,0) -> 133 | U126: 16093 | V126: =ROUND(V$3*$B126,0) -> 266
A127: 125 | B127: 13.4 | C127: 22 | E127: 7370 | F127: =ROUND(F$3*$B127,0) -> 201 | G127: =E127/E$3 -> 14.74 | I127: 4422 | J127: =ROUND(J$3*$B127,0) -> 335 | L127: 5896 | M127: =ROUND(M$3*$B127,0) -> 268 | N127: =O127/O$3 -> 14.74 | O127: 29480 | P127: =ROUND(P$3*$B127,0) -> 469 | Q127: =P127/P$3 -> 13.4 | R127: 884 | S127: =ROUND(S$3*$B127,0) -> 134 | U127: 16214 | V127: =ROUND(V$3*$B127,0) -> 268
A128: 126 | B128: 13.5 | C128: 22 | E128: 7443 | F128: =ROUND(F$3*$B128,0) -> 203 | G128: =E128/E$3 -> 14.886 | I128: 4462 | J128: =ROUND(J$3*$B128,0) -> 338 | L128: 5940 | M128: =ROUND(M$3*$B128,0) -> 270 | N128: =O128/O$3 -> 14.8655 | O128: 29731 | P128: =ROUND(P$3*$B128,0) -> 473 | Q128: =P128/P$3 -> 13.51428571 | R128: 891 | S128: =ROUND(S$3*$B128,0) -> 135 | U128: 16335 | V128: =ROUND(V$3*$B128,0) -> 270
A129: 127 | B129: 13.6 | C129: 22 | E129: 7480 | F129: =ROUND(F$3*$B129,0) -> 204 | G129: =E129/E$3 -> 14.96 | I129: 4488 | J129: =ROUND(J$3*$B129,0) -> 340 | L129: 5984 | M129: =ROUND(M$3*$B129,0) -> 272 | N129: =O129/O$3 -> 14.96 | O129: 29920 | P129: =ROUND(P$3*$B129,0) -> 476 | Q129: =P129/P$3 -> 13.6 | R129: 898 | S129: =ROUND(S$3*$B129,0) -> 136 | U129: 16456 | V129: =ROUND(V$3*$B129,0) -> 272
A130: 128 | B130: 13.7 | C130: 22 | E130: 7553 | F130: =ROUND(F$3*$B130,0) -> 206 | G130: =E130/E$3 -> 15.106 | I130: 4528 | J130: =ROUND(J$3*$B130,0) -> 343 | L130: 6028 | M130: =ROUND(M$3*$B130,0) -> 274 | N130: =O130/O$3 -> 15.0855 | O130: 30171 | P130: =ROUND(P$3*$B130,0) -> 480 | Q130: =P130/P$3 -> 13.71428571 | R130: 904 | S130: =ROUND(S$3*$B130,0) -> 137 | U130: 16577 | V130: =ROUND(V$3*$B130,0) -> 274
A131: 129 | B131: 13.8 | C131: =VLOOKUP(A131,Y$25:Z$31,2) -> 22 | E131: =ROUND(AB$8*F131*$C131,0) -> 7590 | F131: =ROUND(F$3*$B131,0) -> 207 | G131: =E131/E$3 -> 15.18 | I131: =ROUND(AB$9*J131*$C131,0) -> 4554 | J131: =ROUND(J$3*$B131,0) -> 345 | L131: =ROUND(AB$10*M131*$C131,0) -> 6072 | M131: =ROUND(M$3*$B131,0) -> 276 | N131: =O131/O$3 -> 15.18 | O131: =ROUND(AB$13*P131*$C131,0) -> 30360 | P131: =ROUND(P$3*$B131,0) -> 483 | Q131: =P131/P$3 -> 13.8 | R131: =ROUND(AB$14*S131*$C131,0) -> 911 | S131: =ROUND(S$3*$B131,0) -> 138 | U131: =ROUND(AB$15*V131*$C131,0) -> 16698 | V131: =ROUND(V$3*$B131,0) -> 276
A132: 130 | B132: 13.9 | C132: 22 | E132: 7663 | F132: =ROUND(F$3*$B132,0) -> 209 | G132: =E132/E$3 -> 15.326 | I132: 4594 | J132: =ROUND(J$3*$B132,0) -> 348 | L132: 6116 | M132: =ROUND(M$3*$B132,0) -> 278 | N132: =O132/O$3 -> 15.3055 | O132: 30611 | P132: =ROUND(P$3*$B132,0) -> 487 | Q132: =P132/P$3 -> 13.91428571 | R132: 917 | S132: =ROUND(S$3*$B132,0) -> 139 | U132: 16819 | V132: =ROUND(V$3*$B132,0) -> 278
A133: 131 | B133: 14 | C133: 22 | E133: 7700 | F133: =ROUND(F$3*$B133,0) -> 210 | G133: =E133/E$3 -> 15.4 | I133: 4620 | J133: =ROUND(J$3*$B133,0) -> 350 | L133: 6160 | M133: =ROUND(M$3*$B133,0) -> 280 | N133: =O133/O$3 -> 15.4 | O133: 30800 | P133: =ROUND(P$3*$B133,0) -> 490 | Q133: =P133/P$3 -> 14 | R133: 924 | S133: =ROUND(S$3*$B133,0) -> 140 | U133: 16940 | V133: =ROUND(V$3*$B133,0) -> 280
A134: 132 | B134: 14.1 | C134: 22 | E134: 7773 | F134: =ROUND(F$3*$B134,0) -> 212 | G134: =E134/E$3 -> 15.546 | I134: 4660 | J134: =ROUND(J$3*$B134,0) -> 353 | L134: 6204 | M134: =ROUND(M$3*$B134,0) -> 282 | N134: =O134/O$3 -> 15.5255 | O134: 31051 | P134: =ROUND(P$3*$B134,0) -> 494 | Q134: =P134/P$3 -> 14.11428571 | R134: 931 | S134: =ROUND(S$3*$B134,0) -> 141 | U134: 17061 | V134: =ROUND(V$3*$B134,0) -> 282
A135: 133 | B135: 14.2 | C135: 22 | E135: 7810 | F135: =ROUND(F$3*$B135,0) -> 213 | G135: =E135/E$3 -> 15.62 | I135: 4686 | J135: =ROUND(J$3*$B135,0) -> 355 | L135: 6248 | M135: =ROUND(M$3*$B135,0) -> 284 | N135: =O135/O$3 -> 15.62 | O135: 31240 | P135: =ROUND(P$3*$B135,0) -> 497 | Q135: =P135/P$3 -> 14.2 | R135: 937 | S135: =ROUND(S$3*$B135,0) -> 142 | U135: 17182 | V135: =ROUND(V$3*$B135,0) -> 284
A136: 134 | B136: 14.3 | C136: 22 | E136: 7883 | F136: =ROUND(F$3*$B136,0) -> 215 | G136: =E136/E$3 -> 15.766 | I136: 4726 | J136: =ROUND(J$3*$B136,0) -> 358 | L136: 6292 | M136: =ROUND(M$3*$B136,0) -> 286 | N136: =O136/O$3 -> 15.7455 | O136: 31491 | P136: =ROUND(P$3*$B136,0) -> 501 | Q136: =P136/P$3 -> 14.31428571 | R136: 944 | S136: =ROUND(S$3*$B136,0) -> 143 | U136: 17303 | V136: =ROUND(V$3*$B136,0) -> 286
A137: 135 | B137: 14.4 | C137: 22 | E137: 7920 | F137: =ROUND(F$3*$B137,0) -> 216 | G137: =E137/E$3 -> 15.84 | I137: 4752 | J137: =ROUND(J$3*$B137,0) -> 360 | L137: 6336 | M137: =ROUND(M$3*$B137,0) -> 288 | N137: =O137/O$3 -> 15.84 | O137: 31680 | P137: =ROUND(P$3*$B137,0) -> 504 | Q137: =P137/P$3 -> 14.4 | R137: 950 | S137: =ROUND(S$3*$B137,0) -> 144 | U137: 17424 | V137: =ROUND(V$3*$B137,0) -> 288
A138: 136 | B138: 14.5 | C138: 22 | E138: 7993 | F138: =ROUND(F$3*$B138,0) -> 218 | G138: =E138/E$3 -> 15.986 | I138: 4792 | J138: =ROUND(J$3*$B138,0) -> 363 | L138: 6380 | M138: =ROUND(M$3*$B138,0) -> 290 | N138: =O138/O$3 -> 15.9655 | O138: 31931 | P138: =ROUND(P$3*$B138,0) -> 508 | Q138: =P138/P$3 -> 14.51428571 | R138: 957 | S138: =ROUND(S$3*$B138,0) -> 145 | U138: 17545 | V138: =ROUND(V$3*$B138,0) -> 290
A139: 137 | B139: 14.6 | C139: 22 | E139: 8030 | F139: =ROUND(F$3*$B139,0) -> 219 | G139: =E139/E$3 -> 16.06 | I139: 4818 | J139: =ROUND(J$3*$B139,0) -> 365 | L139: 6424 | M139: =ROUND(M$3*$B139,0) -> 292 | N139: =O139/O$3 -> 16.06 | O139: 32120 | P139: =ROUND(P$3*$B139,0) -> 511 | Q139: =P139/P$3 -> 14.6 | R139: 964 | S139: =ROUND(S$3*$B139,0) -> 146 | U139: 17666 | V139: =ROUND(V$3*$B139,0) -> 292
A140: 138 | B140: 14.7 | C140: 22 | E140: 8103 | F140: =ROUND(F$3*$B140,0) -> 221 | G140: =E140/E$3 -> 16.206 | I140: 4858 | J140: =ROUND(J$3*$B140,0) -> 368 | L140: 6468 | M140: =ROUND(M$3*$B140,0) -> 294 | N140: =O140/O$3 -> 16.1855 | O140: 32371 | P140: =ROUND(P$3*$B140,0) -> 515 | Q140: =P140/P$3 -> 14.71428571 | R140: 970 | S140: =ROUND(S$3*$B140,0) -> 147 | U140: 17787 | V140: =ROUND(V$3*$B140,0) -> 294
A141: 139 | B141: 14.8 | C141: 22 | E141: 8140 | F141: =ROUND(F$3*$B141,0) -> 222 | G141: =E141/E$3 -> 16.28 | I141: 4884 | J141: =ROUND(J$3*$B141,0) -> 370 | L141: 6512 | M141: =ROUND(M$3*$B141,0) -> 296 | N141: =O141/O$3 -> 16.28 | O141: 32560 | P141: =ROUND(P$3*$B141,0) -> 518 | Q141: =P141/P$3 -> 14.8 | R141: 977 | S141: =ROUND(S$3*$B141,0) -> 148 | U141: 17908 | V141: =ROUND(V$3*$B141,0) -> 296
A142: 140 | B142: 14.9 | C142: 22 | E142: 8213 | F142: =ROUND(F$3*$B142,0) -> 224 | G142: =E142/E$3 -> 16.426 | I142: 4924 | J142: =ROUND(J$3*$B142,0) -> 373 | L142: 6556 | M142: =ROUND(M$3*$B142,0) -> 298 | N142: =O142/O$3 -> 16.4055 | O142: 32811 | P142: =ROUND(P$3*$B142,0) -> 522 | Q142: =P142/P$3 -> 14.91428571 | R142: 983 | S142: =ROUND(S$3*$B142,0) -> 149 | U142: 18029 | V142: =ROUND(V$3*$B142,0) -> 298
A143: 141 | B143: 15 | C143: 22 | E143: 8250 | F143: =ROUND(F$3*$B143,0) -> 225 | G143: =E143/E$3 -> 16.5 | I143: 4950 | J143: =ROUND(J$3*$B143,0) -> 375 | L143: 6600 | M143: =ROUND(M$3*$B143,0) -> 300 | N143: =O143/O$3 -> 16.5 | O143: 33000 | P143: =ROUND(P$3*$B143,0) -> 525 | Q143: =P143/P$3 -> 15 | R143: 990 | S143: =ROUND(S$3*$B143,0) -> 150 | U143: 18150 | V143: =ROUND(V$3*$B143,0) -> 300
A144: 142 | B144: 15.1 | C144: 22 | E144: 8323 | F144: =ROUND(F$3*$B144,0) -> 227 | G144: =E144/E$3 -> 16.646 | I144: 4990 | J144: =ROUND(J$3*$B144,0) -> 378 | L144: 6644 | M144: =ROUND(M$3*$B144,0) -> 302 | N144: =O144/O$3 -> 16.6255 | O144: 33251 | P144: =ROUND(P$3*$B144,0) -> 529 | Q144: =P144/P$3 -> 15.11428571 | R144: 997 | S144: =ROUND(S$3*$B144,0) -> 151 | U144: 18271 | V144: =ROUND(V$3*$B144,0) -> 302
A145: 143 | B145: 15.2 | C145: 22 | E145: 8360 | F145: =ROUND(F$3*$B145,0) -> 228 | G145: =E145/E$3 -> 16.72 | I145: 5016 | J145: =ROUND(J$3*$B145,0) -> 380 | L145: 6688 | M145: =ROUND(M$3*$B145,0) -> 304 | N145: =O145/O$3 -> 16.72 | O145: 33440 | P145: =ROUND(P$3*$B145,0) -> 532 | Q145: =P145/P$3 -> 15.2 | R145: 1003 | S145: =ROUND(S$3*$B145,0) -> 152 | U145: 18392 | V145: =ROUND(V$3*$B145,0) -> 304
A146: 144 | B146: 15.3 | C146: 22 | E146: 8433 | F146: =ROUND(F$3*$B146,0) -> 230 | G146: =E146/E$3 -> 16.866 | I146: 5056 | J146: =ROUND(J$3*$B146,0) -> 383 | L146: 6732 | M146: =ROUND(M$3*$B146,0) -> 306 | N146: =O146/O$3 -> 16.8455 | O146: 33691 | P146: =ROUND(P$3*$B146,0) -> 536 | Q146: =P146/P$3 -> 15.31428571 | R146: 1010 | S146: =ROUND(S$3*$B146,0) -> 153 | U146: 18513 | V146: =ROUND(V$3*$B146,0) -> 306
A147: 145 | B147: 15.4 | C147: 22 | E147: 8470 | F147: =ROUND(F$3*$B147,0) -> 231 | G147: =E147/E$3 -> 16.94 | I147: 5082 | J147: =ROUND(J$3*$B147,0) -> 385 | L147: 6776 | M147: =ROUND(M$3*$B147,0) -> 308 | N147: =O147/O$3 -> 16.94 | O147: 33880 | P147: =ROUND(P$3*$B147,0) -> 539 | Q147: =P147/P$3 -> 15.4 | R147: 1016 | S147: =ROUND(S$3*$B147,0) -> 154 | U147: 18634 | V147: =ROUND(V$3*$B147,0) -> 308
A148: 146 | B148: 15.5 | C148: 22 | E148: 8543 | F148: =ROUND(F$3*$B148,0) -> 233 | G148: =E148/E$3 -> 17.086 | I148: 5122 | J148: =ROUND(J$3*$B148,0) -> 388 | L148: 6820 | M148: =ROUND(M$3*$B148,0) -> 310 | N148: =O148/O$3 -> 17.0655 | O148: 34131 | P148: =ROUND(P$3*$B148,0) -> 543 | Q148: =P148/P$3 -> 15.51428571 | R148: 1023 | S148: =ROUND(S$3*$B148,0) -> 155 | U148: 18755 | V148: =ROUND(V$3*$B148,0) -> 310
A149: 147 | B149: 15.6 | C149: 22 | E149: 8580 | F149: =ROUND(F$3*$B149,0) -> 234 | G149: =E149/E$3 -> 17.16 | I149: 5148 | J149: =ROUND(J$3*$B149,0) -> 390 | L149: 6864 | M149: =ROUND(M$3*$B149,0) -> 312 | N149: =O149/O$3 -> 17.16 | O149: 34320 | P149: =ROUND(P$3*$B149,0) -> 546 | Q149: =P149/P$3 -> 15.6 | R149: 1030 | S149: =ROUND(S$3*$B149,0) -> 156 | U149: 18876 | V149: =ROUND(V$3*$B149,0) -> 312
A150: 148 | B150: 15.7 | C150: 22 | E150: 8653 | F150: =ROUND(F$3*$B150,0) -> 236 | G150: =E150/E$3 -> 17.306 | I150: 5188 | J150: =ROUND(J$3*$B150,0) -> 393 | L150: 6908 | M150: =ROUND(M$3*$B150,0) -> 314 | N150: =O150/O$3 -> 17.2855 | O150: 34571 | P150: =ROUND(P$3*$B150,0) -> 550 | Q150: =P150/P$3 -> 15.71428571 | R150: 1036 | S150: =ROUND(S$3*$B150,0) -> 157 | U150: 18997 | V150: =ROUND(V$3*$B150,0) -> 314
A151: 149 | B151: 15.8 | C151: 22 | E151: 8690 | F151: =ROUND(F$3*$B151,0) -> 237 | G151: =E151/E$3 -> 17.38 | I151: 5214 | J151: =ROUND(J$3*$B151,0) -> 395 | L151: 6952 | M151: =ROUND(M$3*$B151,0) -> 316 | N151: =O151/O$3 -> 17.38 | O151: 34760 | P151: =ROUND(P$3*$B151,0) -> 553 | Q151: =P151/P$3 -> 15.8 | R151: 1043 | S151: =ROUND(S$3*$B151,0) -> 158 | U151: 19118 | V151: =ROUND(V$3*$B151,0) -> 316
A152: 150 | B152: 15.9 | C152: 23 | E152: 9162 | F152: =ROUND(F$3*$B152,0) -> 239 | G152: =E152/E$3 -> 18.324 | I152: 5492 | J152: =ROUND(J$3*$B152,0) -> 398 | L152: 7314 | M152: =ROUND(M$3*$B152,0) -> 318 | N152: =O152/O$3 -> 18.3015 | O152: 36603 | P152: =ROUND(P$3*$B152,0) -> 557 | Q152: =P152/P$3 -> 15.91428571 | R152: 1097 | S152: =ROUND(S$3*$B152,0) -> 159 | U152: 20114 | V152: =ROUND(V$3*$B152,0) -> 318
A153: 151 | B153: 16 | C153: 23 | E153: 9200 | F153: =ROUND(F$3*$B153,0) -> 240 | G153: =E153/E$3 -> 18.4 | I153: 5520 | J153: =ROUND(J$3*$B153,0) -> 400 | L153: 7360 | M153: =ROUND(M$3*$B153,0) -> 320 | N153: =O153/O$3 -> 18.4 | O153: 36800 | P153: =ROUND(P$3*$B153,0) -> 560 | Q153: =P153/P$3 -> 16 | R153: 1104 | S153: =ROUND(S$3*$B153,0) -> 160 | U153: 20240 | V153: =ROUND(V$3*$B153,0) -> 320
A154: 152 | B154: 16.1 | C154: 23 | E154: 9277 | F154: =ROUND(F$3*$B154,0) -> 242 | G154: =E154/E$3 -> 18.554 | I154: 5561 | J154: =ROUND(J$3*$B154,0) -> 403 | L154: 7406 | M154: =ROUND(M$3*$B154,0) -> 322 | N154: =O154/O$3 -> 18.5315 | O154: 37063 | P154: =ROUND(P$3*$B154,0) -> 564 | Q154: =P154/P$3 -> 16.11428571 | R154: 1111 | S154: =ROUND(S$3*$B154,0) -> 161 | U154: 20367 | V154: =ROUND(V$3*$B154,0) -> 322
A155: 153 | B155: 16.2 | C155: 23 | E155: 9315 | F155: =ROUND(F$3*$B155,0) -> 243 | G155: =E155/E$3 -> 18.63 | I155: 5589 | J155: =ROUND(J$3*$B155,0) -> 405 | L155: 7452 | M155: =ROUND(M$3*$B155,0) -> 324 | N155: =O155/O$3 -> 18.63 | O155: 37260 | P155: =ROUND(P$3*$B155,0) -> 567 | Q155: =P155/P$3 -> 16.2 | R155: 1118 | S155: =ROUND(S$3*$B155,0) -> 162 | U155: 20493 | V155: =ROUND(V$3*$B155,0) -> 324
A156: 154 | B156: 16.3 | C156: 23 | E156: 9392 | F156: =ROUND(F$3*$B156,0) -> 245 | G156: =E156/E$3 -> 18.784 | I156: 5630 | J156: =ROUND(J$3*$B156,0) -> 408 | L156: 7498 | M156: =ROUND(M$3*$B156,0) -> 326 | N156: =O156/O$3 -> 18.7615 | O156: 37523 | P156: =ROUND(P$3*$B156,0) -> 571 | Q156: =P156/P$3 -> 16.31428571 | R156: 1125 | S156: =ROUND(S$3*$B156,0) -> 163 | U156: 20620 | V156: =ROUND(V$3*$B156,0) -> 326
A157: 155 | B157: 16.4 | C157: 23 | E157: 9430 | F157: =ROUND(F$3*$B157,0) -> 246 | G157: =E157/E$3 -> 18.86 | I157: 5658 | J157: =ROUND(J$3*$B157,0) -> 410 | L157: 7544 | M157: =ROUND(M$3*$B157,0) -> 328 | N157: =O157/O$3 -> 18.86 | O157: 37720 | P157: =ROUND(P$3*$B157,0) -> 574 | Q157: =P157/P$3 -> 16.4 | R157: 1132 | S157: =ROUND(S$3*$B157,0) -> 164 | U157: 20746 | V157: =ROUND(V$3*$B157,0) -> 328
A158: 156 | B158: 16.5 | C158: 23 | E158: 9507 | F158: =ROUND(F$3*$B158,0) -> 248 | G158: =E158/E$3 -> 19.014 | I158: 5699 | J158: =ROUND(J$3*$B158,0) -> 413 | L158: 7590 | M158: =ROUND(M$3*$B158,0) -> 330 | N158: =O158/O$3 -> 18.9915 | O158: 37983 | P158: =ROUND(P$3*$B158,0) -> 578 | Q158: =P158/P$3 -> 16.51428571 | R158: 1139 | S158: =ROUND(S$3*$B158,0) -> 165 | U158: 20873 | V158: =ROUND(V$3*$B158,0) -> 330
A159: 157 | B159: 16.6 | C159: 23 | E159: 9545 | F159: =ROUND(F$3*$B159,0) -> 249 | G159: =E159/E$3 -> 19.09 | I159: 5727 | J159: =ROUND(J$3*$B159,0) -> 415 | L159: 7636 | M159: =ROUND(M$3*$B159,0) -> 332 | N159: =O159/O$3 -> 19.09 | O159: 38180 | P159: =ROUND(P$3*$B159,0) -> 581 | Q159: =P159/P$3 -> 16.6 | R159: 1145 | S159: =ROUND(S$3*$B159,0) -> 166 | U159: 20999 | V159: =ROUND(V$3*$B159,0) -> 332
A160: 158 | B160: 16.7 | C160: 23 | E160: 9622 | F160: =ROUND(F$3*$B160,0) -> 251 | G160: =E160/E$3 -> 19.244 | I160: 5768 | J160: =ROUND(J$3*$B160,0) -> 418 | L160: 7682 | M160: =ROUND(M$3*$B160,0) -> 334 | N160: =O160/O$3 -> 19.2215 | O160: 38443 | P160: =ROUND(P$3*$B160,0) -> 585 | Q160: =P160/P$3 -> 16.71428571 | R160: 1152 | S160: =ROUND(S$3*$B160,0) -> 167 | U160: 21126 | V160: =ROUND(V$3*$B160,0) -> 334
A161: 159 | B161: 16.8 | C161: 23 | E161: 9660 | F161: =ROUND(F$3*$B161,0) -> 252 | G161: =E161/E$3 -> 19.32 | I161: 5796 | J161: =ROUND(J$3*$B161,0) -> 420 | L161: 7728 | M161: =ROUND(M$3*$B161,0) -> 336 | N161: =O161/O$3 -> 19.32 | O161: 38640 | P161: =ROUND(P$3*$B161,0) -> 588 | Q161: =P161/P$3 -> 16.8 | R161: 1159 | S161: =ROUND(S$3*$B161,0) -> 168 | U161: 21252 | V161: =ROUND(V$3*$B161,0) -> 336
A162: 160 | B162: 16.9 | C162: 23 | E162: 9737 | F162: =ROUND(F$3*$B162,0) -> 254 | G162: =E162/E$3 -> 19.474 | I162: 5837 | J162: =ROUND(J$3*$B162,0) -> 423 | L162: 7774 | M162: =ROUND(M$3*$B162,0) -> 338 | N162: =O162/O$3 -> 19.4515 | O162: 38903 | P162: =ROUND(P$3*$B162,0) -> 592 | Q162: =P162/P$3 -> 16.91428571 | R162: 1166 | S162: =ROUND(S$3*$B162,0) -> 169 | U162: 21379 | V162: =ROUND(V$3*$B162,0) -> 338
A163: 161 | B163: 17 | C163: 23 | E163: 9775 | F163: =ROUND(F$3*$B163,0) -> 255 | G163: =E163/E$3 -> 19.55 | I163: 5865 | J163: =ROUND(J$3*$B163,0) -> 425 | L163: 7820 | M163: =ROUND(M$3*$B163,0) -> 340 | N163: =O163/O$3 -> 19.55 | O163: 39100 | P163: =ROUND(P$3*$B163,0) -> 595 | Q163: =P163/P$3 -> 17 | R163: 1173 | S163: =ROUND(S$3*$B163,0) -> 170 | U163: 21505 | V163: =ROUND(V$3*$B163,0) -> 340
A164: 162 | B164: 17.1 | C164: 23 | E164: 9852 | F164: =ROUND(F$3*$B164,0) -> 257 | G164: =E164/E$3 -> 19.704 | I164: 5906 | J164: =ROUND(J$3*$B164,0) -> 428 | L164: 7866 | M164: =ROUND(M$3*$B164,0) -> 342 | N164: =O164/O$3 -> 19.6815 | O164: 39363 | P164: =ROUND(P$3*$B164,0) -> 599 | Q164: =P164/P$3 -> 17.11428571 | R164: 1180 | S164: =ROUND(S$3*$B164,0) -> 171 | U164: 21632 | V164: =ROUND(V$3*$B164,0) -> 342
A165: 163 | B165: 17.2 | C165: 23 | E165: 9890 | F165: =ROUND(F$3*$B165,0) -> 258 | G165: =E165/E$3 -> 19.78 | I165: 5934 | J165: =ROUND(J$3*$B165,0) -> 430 | L165: 7912 | M165: =ROUND(M$3*$B165,0) -> 344 | N165: =O165/O$3 -> 19.78 | O165: 39560 | P165: =ROUND(P$3*$B165,0) -> 602 | Q165: =P165/P$3 -> 17.2 | R165: 1187 | S165: =ROUND(S$3*$B165,0) -> 172 | U165: 21758 | V165: =ROUND(V$3*$B165,0) -> 344
A166: 164 | B166: 17.3 | C166: 23 | E166: 9967 | F166: =ROUND(F$3*$B166,0) -> 260 | G166: =E166/E$3 -> 19.934 | I166: 5975 | J166: =ROUND(J$3*$B166,0) -> 433 | L166: 7958 | M166: =ROUND(M$3*$B166,0) -> 346 | N166: =O166/O$3 -> 19.9115 | O166: 39823 | P166: =ROUND(P$3*$B166,0) -> 606 | Q166: =P166/P$3 -> 17.31428571 | R166: 1194 | S166: =ROUND(S$3*$B166,0) -> 173 | U166: 21885 | V166: =ROUND(V$3*$B166,0) -> 346
A167: 165 | B167: 17.4 | C167: 23 | E167: 10005 | F167: =ROUND(F$3*$B167,0) -> 261 | G167: =E167/E$3 -> 20.01 | I167: 6003 | J167: =ROUND(J$3*$B167,0) -> 435 | L167: 8004 | M167: =ROUND(M$3*$B167,0) -> 348 | N167: =O167/O$3 -> 20.01 | O167: 40020 | P167: =ROUND(P$3*$B167,0) -> 609 | Q167: =P167/P$3 -> 17.4 | R167: 1201 | S167: =ROUND(S$3*$B167,0) -> 174 | U167: 22011 | V167: =ROUND(V$3*$B167,0) -> 348
A168: 166 | B168: 17.5 | C168: 23 | E168: 10082 | F168: =ROUND(F$3*$B168,0) -> 263 | G168: =E168/E$3 -> 20.164 | I168: 6044 | J168: =ROUND(J$3*$B168,0) -> 438 | L168: 8050 | M168: =ROUND(M$3*$B168,0) -> 350 | N168: =O168/O$3 -> 20.1415 | O168: 40283 | P168: =ROUND(P$3*$B168,0) -> 613 | Q168: =P168/P$3 -> 17.51428571 | R168: 1208 | S168: =ROUND(S$3*$B168,0) -> 175 | U168: 22138 | V168: =ROUND(V$3*$B168,0) -> 350
A169: 167 | B169: 17.6 | C169: 23 | E169: 10120 | F169: =ROUND(F$3*$B169,0) -> 264 | G169: =E169/E$3 -> 20.24 | I169: 6072 | J169: =ROUND(J$3*$B169,0) -> 440 | L169: 8096 | M169: =ROUND(M$3*$B169,0) -> 352 | N169: =O169/O$3 -> 20.24 | O169: 40480 | P169: =ROUND(P$3*$B169,0) -> 616 | Q169: =P169/P$3 -> 17.6 | R169: 1214 | S169: =ROUND(S$3*$B169,0) -> 176 | U169: 22264 | V169: =ROUND(V$3*$B169,0) -> 352
A170: 168 | B170: 17.7 | C170: 23 | E170: 10197 | F170: =ROUND(F$3*$B170,0) -> 266 | G170: =E170/E$3 -> 20.394 | I170: 6113 | J170: =ROUND(J$3*$B170,0) -> 443 | L170: 8142 | M170: =ROUND(M$3*$B170,0) -> 354 | N170: =O170/O$3 -> 20.3715 | O170: 40743 | P170: =ROUND(P$3*$B170,0) -> 620 | Q170: =P170/P$3 -> 17.71428571 | R170: 1221 | S170: =ROUND(S$3*$B170,0) -> 177 | U170: 22391 | V170: =ROUND(V$3*$B170,0) -> 354
A171: 169 | B171: 17.8 | C171: 23 | E171: 10235 | F171: =ROUND(F$3*$B171,0) -> 267 | G171: =E171/E$3 -> 20.47 | I171: 6141 | J171: =ROUND(J$3*$B171,0) -> 445 | L171: 8188 | M171: =ROUND(M$3*$B171,0) -> 356 | N171: =O171/O$3 -> 20.47 | O171: 40940 | P171: =ROUND(P$3*$B171,0) -> 623 | Q171: =P171/P$3 -> 17.8 | R171: 1228 | S171: =ROUND(S$3*$B171,0) -> 178 | U171: 22517 | V171: =ROUND(V$3*$B171,0) -> 356
A172: 170 | B172: 17.9 | C172: 23 | E172: 10312 | F172: =ROUND(F$3*$B172,0) -> 269 | G172: =E172/E$3 -> 20.624 | I172: 6182 | J172: =ROUND(J$3*$B172,0) -> 448 | L172: 8234 | M172: =ROUND(M$3*$B172,0) -> 358 | N172: =O172/O$3 -> 20.6015 | O172: 41203 | P172: =ROUND(P$3*$B172,0) -> 627 | Q172: =P172/P$3 -> 17.91428571 | R172: 1235 | S172: =ROUND(S$3*$B172,0) -> 179 | U172: 22644 | V172: =ROUND(V$3*$B172,0) -> 358
A173: 171 | B173: 18 | C173: 23 | E173: 10350 | F173: =ROUND(F$3*$B173,0) -> 270 | G173: =E173/E$3 -> 20.7 | I173: 6210 | J173: =ROUND(J$3*$B173,0) -> 450 | L173: 8280 | M173: =ROUND(M$3*$B173,0) -> 360 | N173: =O173/O$3 -> 20.7 | O173: 41400 | P173: =ROUND(P$3*$B173,0) -> 630 | Q173: =P173/P$3 -> 18 | R173: 1242 | S173: =ROUND(S$3*$B173,0) -> 180 | U173: 22770 | V173: =ROUND(V$3*$B173,0) -> 360
A174: 172 | B174: 18.1 | C174: 23 | E174: 10427 | F174: =ROUND(F$3*$B174,0) -> 272 | G174: =E174/E$3 -> 20.854 | I174: 6251 | J174: =ROUND(J$3*$B174,0) -> 453 | L174: 8326 | M174: =ROUND(M$3*$B174,0) -> 362 | N174: =O174/O$3 -> 20.8315 | O174: 41663 | P174: =ROUND(P$3*$B174,0) -> 634 | Q174: =P174/P$3 -> 18.11428571 | R174: 1249 | S174: =ROUND(S$3*$B174,0) -> 181 | U174: 22897 | V174: =ROUND(V$3*$B174,0) -> 362
A175: 173 | B175: 18.2 | C175: 23 | E175: 10465 | F175: =ROUND(F$3*$B175,0) -> 273 | G175: =E175/E$3 -> 20.93 | I175: 6279 | J175: =ROUND(J$3*$B175,0) -> 455 | L175: 8372 | M175: =ROUND(M$3*$B175,0) -> 364 | N175: =O175/O$3 -> 20.93 | O175: 41860 | P175: =ROUND(P$3*$B175,0) -> 637 | Q175: =P175/P$3 -> 18.2 | R175: 1256 | S175: =ROUND(S$3*$B175,0) -> 182 | U175: 23023 | V175: =ROUND(V$3*$B175,0) -> 364
A176: 174 | B176: 18.3 | C176: 23 | E176: 10542 | F176: =ROUND(F$3*$B176,0) -> 275 | G176: =E176/E$3 -> 21.084 | I176: 6320 | J176: =ROUND(J$3*$B176,0) -> 458 | L176: 8418 | M176: =ROUND(M$3*$B176,0) -> 366 | N176: =O176/O$3 -> 21.0615 | O176: 42123 | P176: =ROUND(P$3*$B176,0) -> 641 | Q176: =P176/P$3 -> 18.31428571 | R176: 1263 | S176: =ROUND(S$3*$B176,0) -> 183 | U176: 23150 | V176: =ROUND(V$3*$B176,0) -> 366
A177: 175 | B177: 18.4 | C177: 23 | E177: 10580 | F177: =ROUND(F$3*$B177,0) -> 276 | G177: =E177/E$3 -> 21.16 | I177: 6348 | J177: =ROUND(J$3*$B177,0) -> 460 | L177: 8464 | M177: =ROUND(M$3*$B177,0) -> 368 | N177: =O177/O$3 -> 21.16 | O177: 42320 | P177: =ROUND(P$3*$B177,0) -> 644 | Q177: =P177/P$3 -> 18.4 | R177: 1270 | S177: =ROUND(S$3*$B177,0) -> 184 | U177: 23276 | V177: =ROUND(V$3*$B177,0) -> 368
A178: 176 | B178: 18.5 | C178: 23 | E178: 10657 | F178: =ROUND(F$3*$B178,0) -> 278 | G178: =E178/E$3 -> 21.314 | I178: 6389 | J178: =ROUND(J$3*$B178,0) -> 463 | L178: 8510 | M178: =ROUND(M$3*$B178,0) -> 370 | N178: =O178/O$3 -> 21.2915 | O178: 42583 | P178: =ROUND(P$3*$B178,0) -> 648 | Q178: =P178/P$3 -> 18.51428571 | R178: 1277 | S178: =ROUND(S$3*$B178,0) -> 185 | U178: 23403 | V178: =ROUND(V$3*$B178,0) -> 370
A179: 177 | B179: 18.6 | C179: 23 | E179: 10695 | F179: =ROUND(F$3*$B179,0) -> 279 | G179: =E179/E$3 -> 21.39 | I179: 6417 | J179: =ROUND(J$3*$B179,0) -> 465 | L179: 8556 | M179: =ROUND(M$3*$B179,0) -> 372 | N179: =O179/O$3 -> 21.39 | O179: 42780 | P179: =ROUND(P$3*$B179,0) -> 651 | Q179: =P179/P$3 -> 18.6 | R179: 1283 | S179: =ROUND(S$3*$B179,0) -> 186 | U179: 23529 | V179: =ROUND(V$3*$B179,0) -> 372
A180: 178 | B180: 18.7 | C180: 23 | E180: 10772 | F180: =ROUND(F$3*$B180,0) -> 281 | G180: =E180/E$3 -> 21.544 | I180: 6458 | J180: =ROUND(J$3*$B180,0) -> 468 | L180: 8602 | M180: =ROUND(M$3*$B180,0) -> 374 | N180: =O180/O$3 -> 21.5215 | O180: 43043 | P180: =ROUND(P$3*$B180,0) -> 655 | Q180: =P180/P$3 -> 18.71428571 | R180: 1290 | S180: =ROUND(S$3*$B180,0) -> 187 | U180: 23656 | V180: =ROUND(V$3*$B180,0) -> 374
A181: 179 | B181: 18.8 | C181: 23 | E181: 10810 | F181: =ROUND(F$3*$B181,0) -> 282 | G181: =E181/E$3 -> 21.62 | I181: 6486 | J181: =ROUND(J$3*$B181,0) -> 470 | L181: 8648 | M181: =ROUND(M$3*$B181,0) -> 376 | N181: =O181/O$3 -> 21.62 | O181: 43240 | P181: =ROUND(P$3*$B181,0) -> 658 | Q181: =P181/P$3 -> 18.8 | R181: 1297 | S181: =ROUND(S$3*$B181,0) -> 188 | U181: 23782 | V181: =ROUND(V$3*$B181,0) -> 376
A182: 180 | B182: 18.9 | C182: 23 | E182: 10887 | F182: =ROUND(F$3*$B182,0) -> 284 | G182: =E182/E$3 -> 21.774 | I182: 6527 | J182: =ROUND(J$3*$B182,0) -> 473 | L182: 8694 | M182: =ROUND(M$3*$B182,0) -> 378 | N182: =O182/O$3 -> 21.7515 | O182: 43503 | P182: =ROUND(P$3*$B182,0) -> 662 | Q182: =P182/P$3 -> 18.91428571 | R182: 1304 | S182: =ROUND(S$3*$B182,0) -> 189 | U182: 23909 | V182: =ROUND(V$3*$B182,0) -> 378
A183: 181 | B183: 19 | C183: 23 | E183: 10925 | F183: =ROUND(F$3*$B183,0) -> 285 | G183: =E183/E$3 -> 21.85 | I183: 6555 | J183: =ROUND(J$3*$B183,0) -> 475 | L183: 8740 | M183: =ROUND(M$3*$B183,0) -> 380 | N183: =O183/O$3 -> 21.85 | O183: 43700 | P183: =ROUND(P$3*$B183,0) -> 665 | Q183: =P183/P$3 -> 19 | R183: 1311 | S183: =ROUND(S$3*$B183,0) -> 190 | U183: 24035 | V183: =ROUND(V$3*$B183,0) -> 380
A184: 182 | B184: 19.1 | C184: 23 | E184: 11002 | F184: =ROUND(F$3*$B184,0) -> 287 | G184: =E184/E$3 -> 22.004 | I184: 6596 | J184: =ROUND(J$3*$B184,0) -> 478 | L184: 8786 | M184: =ROUND(M$3*$B184,0) -> 382 | N184: =O184/O$3 -> 21.9815 | O184: 43963 | P184: =ROUND(P$3*$B184,0) -> 669 | Q184: =P184/P$3 -> 19.11428571 | R184: 1318 | S184: =ROUND(S$3*$B184,0) -> 191 | U184: 24162 | V184: =ROUND(V$3*$B184,0) -> 382
A185: 183 | B185: 19.2 | C185: 23 | E185: 11040 | F185: =ROUND(F$3*$B185,0) -> 288 | G185: =E185/E$3 -> 22.08 | I185: 6624 | J185: =ROUND(J$3*$B185,0) -> 480 | L185: 8832 | M185: =ROUND(M$3*$B185,0) -> 384 | N185: =O185/O$3 -> 22.08 | O185: 44160 | P185: =ROUND(P$3*$B185,0) -> 672 | Q185: =P185/P$3 -> 19.2 | R185: 1325 | S185: =ROUND(S$3*$B185,0) -> 192 | U185: 24288 | V185: =ROUND(V$3*$B185,0) -> 384
A186: 184 | B186: 19.3 | C186: 23 | E186: 11117 | F186: =ROUND(F$3*$B186,0) -> 290 | G186: =E186/E$3 -> 22.234 | I186: 6665 | J186: =ROUND(J$3*$B186,0) -> 483 | L186: 8878 | M186: =ROUND(M$3*$B186,0) -> 386 | N186: =O186/O$3 -> 22.2115 | O186: 44423 | P186: =ROUND(P$3*$B186,0) -> 676 | Q186: =P186/P$3 -> 19.31428571 | R186: 1332 | S186: =ROUND(S$3*$B186,0) -> 193 | U186: 24415 | V186: =ROUND(V$3*$B186,0) -> 386
A187: 185 | B187: 19.4 | C187: 23 | E187: 11155 | F187: =ROUND(F$3*$B187,0) -> 291 | G187: =E187/E$3 -> 22.31 | I187: 6693 | J187: =ROUND(J$3*$B187,0) -> 485 | L187: 8924 | M187: =ROUND(M$3*$B187,0) -> 388 | N187: =O187/O$3 -> 22.31 | O187: 44620 | P187: =ROUND(P$3*$B187,0) -> 679 | Q187: =P187/P$3 -> 19.4 | R187: 1339 | S187: =ROUND(S$3*$B187,0) -> 194 | U187: 24541 | V187: =ROUND(V$3*$B187,0) -> 388
A188: 186 | B188: 19.5 | C188: 23 | E188: 11232 | F188: =ROUND(F$3*$B188,0) -> 293 | G188: =E188/E$3 -> 22.464 | I188: 6734 | J188: =ROUND(J$3*$B188,0) -> 488 | L188: 8970 | M188: =ROUND(M$3*$B188,0) -> 390 | N188: =O188/O$3 -> 22.4415 | O188: 44883 | P188: =ROUND(P$3*$B188,0) -> 683 | Q188: =P188/P$3 -> 19.51428571 | R188: 1346 | S188: =ROUND(S$3*$B188,0) -> 195 | U188: 24668 | V188: =ROUND(V$3*$B188,0) -> 390
A189: 187 | B189: 19.6 | C189: 23 | E189: 11270 | F189: =ROUND(F$3*$B189,0) -> 294 | G189: =E189/E$3 -> 22.54 | I189: 6762 | J189: =ROUND(J$3*$B189,0) -> 490 | L189: 9016 | M189: =ROUND(M$3*$B189,0) -> 392 | N189: =O189/O$3 -> 22.54 | O189: 45080 | P189: =ROUND(P$3*$B189,0) -> 686 | Q189: =P189/P$3 -> 19.6 | R189: 1352 | S189: =ROUND(S$3*$B189,0) -> 196 | U189: 24794 | V189: =ROUND(V$3*$B189,0) -> 392
A190: 188 | B190: 19.7 | C190: 23 | E190: 11347 | F190: =ROUND(F$3*$B190,0) -> 296 | G190: =E190/E$3 -> 22.694 | I190: 6803 | J190: =ROUND(J$3*$B190,0) -> 493 | L190: 9062 | M190: =ROUND(M$3*$B190,0) -> 394 | N190: =O190/O$3 -> 22.6715 | O190: 45343 | P190: =ROUND(P$3*$B190,0) -> 690 | Q190: =P190/P$3 -> 19.71428571 | R190: 1359 | S190: =ROUND(S$3*$B190,0) -> 197 | U190: 24921 | V190: =ROUND(V$3*$B190,0) -> 394
A191: 189 | B191: 19.8 | C191: 23 | E191: 11385 | F191: =ROUND(F$3*$B191,0) -> 297 | G191: =E191/E$3 -> 22.77 | I191: 6831 | J191: =ROUND(J$3*$B191,0) -> 495 | L191: 9108 | M191: =ROUND(M$3*$B191,0) -> 396 | N191: =O191/O$3 -> 22.77 | O191: 45540 | P191: =ROUND(P$3*$B191,0) -> 693 | Q191: =P191/P$3 -> 19.8 | R191: 1366 | S191: =ROUND(S$3*$B191,0) -> 198 | U191: 25047 | V191: =ROUND(V$3*$B191,0) -> 396
A192: 190 | B192: 19.9 | C192: 23 | E192: 11462 | F192: =ROUND(F$3*$B192,0) -> 299 | G192: =E192/E$3 -> 22.924 | I192: 6872 | J192: =ROUND(J$3*$B192,0) -> 498 | L192: 9154 | M192: =ROUND(M$3*$B192,0) -> 398 | N192: =O192/O$3 -> 22.9015 | O192: 45803 | P192: =ROUND(P$3*$B192,0) -> 697 | Q192: =P192/P$3 -> 19.91428571 | R192: 1373 | S192: =ROUND(S$3*$B192,0) -> 199 | U192: 25174 | V192: =ROUND(V$3*$B192,0) -> 398
A193: 191 | B193: 20 | C193: 23 | E193: 11500 | F193: =ROUND(F$3*$B193,0) -> 300 | G193: =E193/E$3 -> 23 | I193: 6900 | J193: =ROUND(J$3*$B193,0) -> 500 | L193: 9200 | M193: =ROUND(M$3*$B193,0) -> 400 | N193: =O193/O$3 -> 23 | O193: 46000 | P193: =ROUND(P$3*$B193,0) -> 700 | Q193: =P193/P$3 -> 20 | R193: 1380 | S193: =ROUND(S$3*$B193,0) -> 200 | U193: 25300 | V193: =ROUND(V$3*$B193,0) -> 400
A194: 192 | B194: 20.1 | C194: 23 | E194: 11577 | F194: =ROUND(F$3*$B194,0) -> 302 | G194: =E194/E$3 -> 23.154 | I194: 6941 | J194: =ROUND(J$3*$B194,0) -> 503 | L194: 9246 | M194: =ROUND(M$3*$B194,0) -> 402 | N194: =O194/O$3 -> 23.1315 | O194: 46263 | P194: =ROUND(P$3*$B194,0) -> 704 | Q194: =P194/P$3 -> 20.11428571 | R194: 1387 | S194: =ROUND(S$3*$B194,0) -> 201 | U194: 25427 | V194: =ROUND(V$3*$B194,0) -> 402
A195: 193 | B195: 20.2 | C195: =VLOOKUP(A195,Y$25:Z$31,2) -> 23 | E195: =ROUND(AB$8*F195*$C195,0) -> 11615 | F195: =ROUND(F$3*$B195,0) -> 303 | G195: =E195/E$3 -> 23.23 | I195: =ROUND(AB$9*J195*$C195,0) -> 6969 | J195: =ROUND(J$3*$B195,0) -> 505 | L195: =ROUND(AB$10*M195*$C195,0) -> 9292 | M195: =ROUND(M$3*$B195,0) -> 404 | N195: =O195/O$3 -> 23.23 | O195: =ROUND(AB$13*P195*$C195,0) -> 46460 | P195: =ROUND(P$3*$B195,0) -> 707 | Q195: =P195/P$3 -> 20.2 | R195: =ROUND(AB$14*S195*$C195,0) -> 1394 | S195: =ROUND(S$3*$B195,0) -> 202 | U195: =ROUND(AB$15*V195*$C195,0) -> 25553 | V195: =ROUND(V$3*$B195,0) -> 404
A196: 194 | B196: 20.3 | C196: 23 | E196: 11692 | F196: =ROUND(F$3*$B196,0) -> 305 | G196: =E196/E$3 -> 23.384 | I196: 7010 | J196: =ROUND(J$3*$B196,0) -> 508 | L196: 9338 | M196: =ROUND(M$3*$B196,0) -> 406 | N196: =O196/O$3 -> 23.3615 | O196: 46723 | P196: =ROUND(P$3*$B196,0) -> 711 | Q196: =P196/P$3 -> 20.31428571 | R196: 1401 | S196: =ROUND(S$3*$B196,0) -> 203 | U196: 25680 | V196: =ROUND(V$3*$B196,0) -> 406
A197: 195 | B197: 20.4 | C197: 23 | E197: 11730 | F197: =ROUND(F$3*$B197,0) -> 306 | G197: =E197/E$3 -> 23.46 | I197: 7038 | J197: =ROUND(J$3*$B197,0) -> 510 | L197: 9384 | M197: =ROUND(M$3*$B197,0) -> 408 | N197: =O197/O$3 -> 23.46 | O197: 46920 | P197: =ROUND(P$3*$B197,0) -> 714 | Q197: =P197/P$3 -> 20.4 | R197: 1408 | S197: =ROUND(S$3*$B197,0) -> 204 | U197: 25806 | V197: =ROUND(V$3*$B197,0) -> 408
A198: 196 | B198: 20.5 | C198: 23 | E198: 11807 | F198: =ROUND(F$3*$B198,0) -> 308 | G198: =E198/E$3 -> 23.614 | I198: 7079 | J198: =ROUND(J$3*$B198,0) -> 513 | L198: 9430 | M198: =ROUND(M$3*$B198,0) -> 410 | N198: =O198/O$3 -> 23.5915 | O198: 47183 | P198: =ROUND(P$3*$B198,0) -> 718 | Q198: =P198/P$3 -> 20.51428571 | R198: 1415 | S198: =ROUND(S$3*$B198,0) -> 205 | U198: 25933 | V198: =ROUND(V$3*$B198,0) -> 410
A199: 197 | B199: 20.6 | C199: 23 | E199: 11845 | F199: =ROUND(F$3*$B199,0) -> 309 | G199: =E199/E$3 -> 23.69 | I199: 7107 | J199: =ROUND(J$3*$B199,0) -> 515 | L199: 9476 | M199: =ROUND(M$3*$B199,0) -> 412 | N199: =O199/O$3 -> 23.69 | O199: 47380 | P199: =ROUND(P$3*$B199,0) -> 721 | Q199: =P199/P$3 -> 20.6 | R199: 1421 | S199: =ROUND(S$3*$B199,0) -> 206 | U199: 26059 | V199: =ROUND(V$3*$B199,0) -> 412
A200: 198 | B200: 20.7 | C200: 23 | E200: 11922 | F200: =ROUND(F$3*$B200,0) -> 311 | G200: =E200/E$3 -> 23.844 | I200: 7148 | J200: =ROUND(J$3*$B200,0) -> 518 | L200: 9522 | M200: =ROUND(M$3*$B200,0) -> 414 | N200: =O200/O$3 -> 23.8215 | O200: 47643 | P200: =ROUND(P$3*$B200,0) -> 725 | Q200: =P200/P$3 -> 20.71428571 | R200: 1428 | S200: =ROUND(S$3*$B200,0) -> 207 | U200: 26186 | V200: =ROUND(V$3*$B200,0) -> 414
... 102 more rows
